Cogmind - Beta 13 --- EXPLORER MODE // 2024.04.04 @ 20:32:13 // Winter2019/RPGLIKE Player: Reika Result: Destroyed 0b10! Performance ------------- Evolutions (9) 4500 Regions Visited (25) 5000 Robots Destroyed (441) 2205 Value Destroyed (23098) 23098 Prototype IDs (137) 2740 Alien Tech Used (3) 600 Bonus (18187) 18187 TOTAL SCORE: 56330 Bonus ------- High Alert Combat Kills 2386 Follower Combat Kills 93 Entered Garrisons 400 Used RIF Installer 1000 Entered DSFs 500 Aligned with FarCom 300 Met Data Miner 300 Scanned by Researcher 1000 Pursued by Intercept 500 Acquired SGEMP 2000 Met Sigix 2000 Escaped with Sigix 5000 Win 3000 Friendly Fire -292 Cogmind --------- Core Integrity 3058/3100 Matter 1071/1100 Energy 4084/4090 System Corruption 0% Temperature Cool (12) Movement Flying (16) Location Tau Ceti IV Orbit Parts ------- > --- POWER (4) -------- Quantum Reactor Light Quantum Reactor Matter Drive > --- PROPULSION (4) --- Experimental Cesium-ion Thruster Experimental Cesium-ion Thruster Experimental Cesium-ion Thruster Experimental Cesium-ion Thruster > --- UTILITY (12) ----- Advanced Sensor Array Advanced Signal Interpreter Long-range Terrain Scanner Kinecellerator Advanced Weapon Cycler Experimental Phase Shifter Improved Heavy Armor Plating Layered Medium Armor Plating Experimental Hardlight Generator Corruption Screen Long-range Tractor Beam > --- WEAPON (6) ------- Enhanced Nova Cannon Enhanced Nova Cannon Antimatter Cannon Antimatter Cannon Antimatter Cannon Linear Accelerator > --- INVENTORY (55) --- Protomatter-48796 Neutrino Core Neutrino Core Experimental Cesium-ion Thruster Experimental Cesium-ion Thruster Advanced Matter Compressor (400) Triangulator 0b10 Decoder Chip [Looter] Experimental Targeting Computer Advanced Launcher Guidance Computer Recoil Stabilizer Improved Transmission Jammer Advanced ECM Suite Advanced Phase Shifter Cloaking Device Improved Weapon Shielding Improved Heavy Armor Plating Layered Medium Armor Plating Improved Shield Generator Advanced Remote Shield Relay Coupler [Grunt] (108) Relay Coupler [Specialist] (102) Improved Component Analysis Suite Advanced Dynamic Insulation System System Restoration Module Trap Reconfigurator PSU Rigger Dimensional Node Initializer Dimensional Node Initializer Dimensional Node Initializer Transdimensional Reconstructor Transdimensional Reconstructor High-powered Transdimensional Reconstructor High-powered Transdimensional Reconstructor Core Reset Matrix Immobilizer Enhanced Nova Cannon Enhanced Nova Cannon Null Cannon Core Cannon Railgun Railgun Railgun Heavy Assault Cannon Micro-nuke Launcher Ragnarok Missile Launcher Ragnarok Missile Launcher Advanced Remote Datajack SGEMP Prototype Sigix Containment Pod Peak State ------------ > --- POWER ------------ Quantum Reactor Light Quantum Reactor Matter Drive > --- PROPULSION ------- Experimental Cesium-ion Thruster Experimental Cesium-ion Thruster Experimental Cesium-ion Thruster Experimental Cesium-ion Thruster > --- UTILITY ---------- Advanced Sensor Array Advanced Signal Interpreter Long-range Terrain Scanner Kinecellerator Advanced Weapon Cycler Experimental Phase Shifter Improved Heavy Armor Plating Layered Medium Armor Plating Experimental Hardlight Generator Advanced Remote Shield Corruption Screen > --- WEAPON ----------- Enhanced Nova Cannon Enhanced Nova Cannon Antimatter Cannon Antimatter Cannon Antimatter Cannon Linear Accelerator > --- INVENTORY -------- Protomatter Neutrino Core Neutrino Core Experimental Cesium-ion Thruster Experimental Cesium-ion Thruster Advanced Matter Compressor Triangulator 0b10 Decoder Chip [Looter] Experimental Targeting Computer Recoil Stabilizer Improved Transmission Jammer Advanced ECM Suite Advanced Phase Shifter Cloaking Device Improved Weapon Shielding Improved Heavy Armor Plating Layered Medium Armor Plating Improved Shield Generator Relay Coupler [Grunt] Relay Coupler [Specialist] Improved Component Analysis Suite Advanced Dynamic Insulation System System Restoration Module Long-range Tractor Beam Trap Reconfigurator PSU Rigger Dimensional Node Initializer Dimensional Node Initializer Dimensional Node Initializer Transdimensional Reconstructor Transdimensional Reconstructor High-powered Transdimensional Reconstructor High-powered Transdimensional Reconstructor Core Reset Matrix Immobilizer Enhanced Nova Cannon Enhanced Nova Cannon Null Cannon Core Cannon Railgun Railgun Railgun Heavy Assault Cannon Micro-nuke Launcher Ragnarok Missile Launcher Advanced Remote Datajack SGEMP Prototype Sigix Containment Pod [Rating: 237] Favorites ----------- Power Improved Ion Engine Engine Improved Ion Engine Power Core Neutrino Core Reactor Light Antimatter Reactor Propulsion Light Treads Treads Light Treads Wheel Armored Huge Wheel Hover Unit Gravmag System Flight Unit Improved Surge Thruster Utility Targeting Computer Device ECM Suite Processor Targeting Computer Hackware Relay Coupler [NC] Protection Improved Heavy Armor Plating Weapon Autogun Energy Gun Precision Beam Rifle Energy Cannon Enhanced Nova Cannon Ballistic Gun Autogun Ballistic Cannon Antimatter Cannon Launcher Micro-nuke Launcher Special Weapon Remote Datajack Build | -11 -10 -10 -10 -9 -8 -7 -7 -6 -6 -6 -6 -5 -5 -5 -4 -4 -4 -4 -3 -3 -3 -2 -2 -1 -1 ------- Run | Yrd Mat Min Exi Min Mat Fac Gar Fac Low Low Dat Pro Fac DSF Fac Gar Fac Arm Res Qua Sec Res Tes Acc Com Slots Evolved 22 | 18 . . . . 1 2 1 . . . . . . . . . . . . . . . . . . Power 3 | 3 . . . . . . . . . . . . . . . . . . . . . . . . . Propulsion 3 | 3 . . . . . . . . . . . . . . . . . . . . . . . . . Utility 11 | 9 . . . . . 1 1 . . . . . . . . . . . . . . . . . . Weapon 5 | 3 . . . . 1 1 . . . . . . . . . . . . . . . . . . . Parts Attached 183 | 12 26 . 1 6 20 23 9 17 . . . . 4 12 . 5 3 9 . 10 6 1 16 1 2 Power 19 | 2 8 . . . . 1 1 1 . . . . 1 1 . . 1 . . 1 . 1 . 1 . Engine 11 | 2 8 . . . . 1 . . . . . . . . . . . . . . . . . . . Core 3 | . . . . . . . . . . . . . 1 1 . . 1 . . . . . . . . Reactor 5 | . . . . . . . 1 1 . . . . . . . . . . . 1 . 1 . 1 . Propulsion 35 | 2 3 . . . 2 10 6 4 . . . . 1 . . . . 4 . 1 . . 2 . . Treads 8 | 2 3 . . . 2 1 . . . . . . . . . . . . . . . . . . . Leg . | . . . . . . . . . . . . . . . . . . . . . . . . . . Wheel 1 | . . . . . . 1 . . . . . . . . . . . . . . . . . . . Hover 1 | . . . . . . 1 . . . . . . . . . . . . . . . . . . . Flight 25 | . . . . . . 7 6 4 . . . . 1 . . . . 4 . 1 . . 2 . . Utility 75 | 5 7 . 1 6 13 6 2 8 . . . . 2 6 . 1 1 . . 7 . . 8 . 2 Device 51 | 1 4 . 1 4 7 4 1 6 . . . . 2 4 . 1 1 . . 6 . . 7 . 2 Storage . | . . . . . . . . . . . . . . . . . . . . . . . . . . Processor 10 | 2 2 . . 1 3 . . 1 . . . . . . . . . . . 1 . . . . . Hackware 3 | . . . . . 1 . 1 . . . . . . . . . . . . . . . 1 . . Protection 11 | 2 1 . . 1 2 2 . 1 . . . . . 2 . . . . . . . . . . . Artifact . | . . . . . . . . . . . . . . . . . . . . . . . . . . Weapon 54 | 3 8 . . . 5 6 . 4 . . . . . 5 . 4 1 5 . 1 6 . 6 . . Energy Gun 5 | 2 . . . . 2 . . . . . . . . . . . . . . . . . 1 . . Energy Cannon 12 | . . . . . . 1 . 1 . . . . . . . 3 . 2 . 1 1 . 3 . . Ballistic Gun 22 | 1 8 . . . 2 2 . 3 . . . . . 5 . 1 . . . . . . . . . Ballistic Cannon 9 | . . . . . 1 1 . . . . . . . . . . . 3 . . 3 . 1 . . Launcher 4 | . . . . . . . . . . . . . . . . . 1 . . . 2 . 1 . . Special Weapon 2 | . . . . . . 2 . . . . . . . . . . . . . . . . . . . Impact Weapon . | . . . . . . . . . . . . . . . . . . . . . . . . . . Slashing Weapon . | . . . . . . . . . . . . . . . . . . . . . . . . . . Piercing Weapon . | . . . . . . . . . . . . . . . . . . . . . . . . . . Special Melee Weapon . | . . . . . . . . . . . . . . . . . . . . . . . . . . Unidentified Prototypes 10 | . . . . . . . . . . . . . . . . . . . . 2 . . 7 . 1 Parts Lost 1 | . . . . . . . . . . . . . 1 . . . . . . . . . . . . Power . | . . . . . . . . . . . . . . . . . . . . . . . . . . Propulsion . | . . . . . . . . . . . . . . . . . . . . . . . . . . Utility 1 | . . . . . . . . . . . . . 1 . . . . . . . . . . . . Weapon . | . . . . . . . . . . . . . . . . . . . . . . . . . . Highest Loss Streak 1 | . . . . . . . . . . . . . 1 . . . . . . . . . . . . To Critical Strikes . | . . . . . . . . . . . . . . . . . . . . . . . . . . Average Slot Usage (%) 95 | . 85 100 100 100 98 96 98 97 96 96 96 96 95 95 96 95 96 96 96 90 90 92 92 92 92 Engine 11 | . 17 18 18 18 17 16 12 10 7 7 7 7 3 2 . . . . . . . . . . . Core 1 | . . . . . . . . . . . . . 2 4 7 7 10 11 11 6 3 3 3 1 . Reactor 2 | . . . . . . . 1 3 7 7 7 7 7 7 7 7 3 3 3 5 7 7 7 9 11 Treads 8 | . 15 18 18 18 17 4 . . . . . . . . . . . . . . . . . . . Flight 7 | . . . . . . 6 15 15 15 15 15 15 15 15 15 15 15 15 15 15 15 15 15 15 15 Device 22 | . 12 18 20 22 16 21 28 28 30 30 30 30 29 26 26 26 26 26 26 25 26 26 25 26 26 Processor 10 | . 14 18 18 18 16 10 3 3 3 3 3 3 3 3 3 3 3 3 3 6 7 7 7 7 7 Hackware 1 | . . . . . 3 4 3 4 3 3 3 3 3 3 3 3 3 3 3 . . . . . . Protection 5 | . 8 9 6 4 4 7 7 4 3 3 3 3 3 6 7 7 7 7 7 7 7 7 7 7 7 Energy Cannon 2 | . . . . . . . 3 3 3 3 3 3 3 3 3 4 7 7 7 10 8 7 7 7 7 Ballistic Gun 12 | . 13 18 18 18 15 12 11 12 15 15 15 15 15 14 15 15 12 8 . . . . . . . Ballistic Cannon 2 | . . . . . 1 4 3 1 . . . . . . . . . 2 11 7 9 11 12 15 15 Naked Turns . | . . . . . . . . . . . . . . . . . . . . . . . . . . Heaviest Build 167 | 14 49 49 49 51 58 85 93 96 96 96 96 96 103 129 129 140 148 158 158 158 151 158 167 167 161 Greatest Support 325 | 60 100 100 100 100 100 114 129 126 126 126 126 126 126 146 146 146 321 325 325 325 325 325 325 325 325 Greatest Overweight (x) 1 | . . . . . . . . . . . . . . . . . 1 . . . . . . . . Average Overweight (x) . | . . . . . . . . . . . . . . . . . . . . . . . . . . Largest Inventory Capacity 55 | 24 24 24 24 24 24 25 30 30 30 30 30 30 30 30 30 30 50 50 50 55 55 55 55 55 55 Average Capacity 31 | 24 24 24 24 24 24 24 29 30 30 30 30 30 30 30 30 30 43 50 50 52 55 55 55 55 55 Most Carried 55 | 7 12 5 11 20 24 25 29 30 25 25 25 30 29 29 30 30 30 41 40 51 53 47 55 54 55 Average Carried 22 | 3 5 5 9 15 20 21 24 22 24 25 24 26 27 27 27 29 29 37 35 43 46 45 49 52 53 Final Capacity 55 | 24 24 24 24 24 24 25 30 30 30 30 30 30 30 30 30 30 50 50 50 55 55 55 55 55 55 Final Carried 55 | 4 5 5 11 20 21 23 28 24 25 25 22 28 27 27 29 30 29 40 35 50 49 44 55 52 55 Class Distribution -------------------- 50% | Wizard-Scout 24% | Wizard-Skirmisher 19% | Hauler-Skirmisher Dominant Class ---------------- Hauler-Skirmisher | -10/Materials Hauler-Skirmisher | -10/Mines Hauler-Skirmisher | -10/Exiles Wizard-Skirmisher | -9/Mines Wizard-Skirmisher | -8/Materials Wizard-Scout | -7/Factory Wizard-Scout | -7/Garrison Wizard-Scout | -6/Factory Wizard-Scout | -6/Lower Caves Wizard-Scout | -6/Lower Caves Wizard-Scout | -6/Data Miner Wizard-Scout | -5/Proximity Caves Wizard-Scout | -5/Factory Wizard-Scout | -5/DSF Wizard-Scout | -4/Factory Wizard-Scout | -4/Garrison Hauler-Scout | -4/Factory Wizard-Scout | -4/Armory Wizard-Scout | -3/Research Wizard-Scout | -3/Quarantine Wizard-Scout | -3/Section 7 Wizard-Scout | -2/Research Wizard-Scout | -2/Testing Wizard-Scout | -1/Access Wizard-Scout | -1/Command Resources | -11 -10 -10 -10 -9 -8 -7 -7 -6 -6 -6 -6 -5 -5 -5 -4 -4 -4 -4 -3 -3 -3 -2 -2 -1 -1 ----------- Run | Yrd Mat Min Exi Min Mat Fac Gar Fac Low Low Dat Pro Fac DSF Fac Gar Fac Arm Res Qua Sec Res Tes Acc Com Matter Collected 14407 | 396 298 64 . 310 897 831 1398 748 200 476 . 560 20 310 140 1650 896 984 18 1580 522 506 1238 36 329 Remotely 13810 | . 298 64 . 310 758 831 1386 748 200 476 . 560 20 261 140 1650 896 984 18 1579 522 506 1238 36 329 Salvage Created 16541 | 97 284 87 . 232 1301 1140 894 1345 147 539 . 364 . 549 179 1496 1601 1490 21 1507 530 1289 994 55 400 Parts 877 | 1 36 6 . 20 73 57 70 64 12 37 . 35 . 33 10 68 76 69 2 67 23 55 38 4 21 Haulers Intercepted 6 | . . . . . . 1 . . . . . . . . . . 2 . . . 3 . . . . Recyclers Shooed 3 | . . . . . . . . . . . . . . . . . 3 . . . . . . . . Parts Field Recycled . | . . . . . . . . . . . . . . . . . . . . . . . . . . Retrieved Matter . | . . . . . . . . . . . . . . . . . . . . . . . . . . Parts Self-Destructed . | . . . . . . . . . . . . . . . . . . . . . . . . . . Prevented . | . . . . . . . . . . . . . . . . . . . . . . . . . . Kills | -11 -10 -10 -10 -9 -8 -7 -7 -6 -6 -6 -6 -5 -5 -5 -4 -4 -4 -4 -3 -3 -3 -2 -2 -1 -1 ------- Run | Yrd Mat Min Exi Min Mat Fac Gar Fac Low Low Dat Pro Fac DSF Fac Gar Fac Arm Res Qua Sec Res Tes Acc Com Combat Hostiles Destroyed 330 | . 6 4 . 8 21 16 31 18 9 14 . 19 . 10 4 24 27 23 . 26 19 20 23 . 8 Guns 150 | . 6 4 . 8 17 11 13 16 8 11 . 13 . 6 2 18 15 2 . . . . . . . Cannons 141 | . . . . . 4 5 18 2 1 2 . 5 . 4 1 4 5 19 . 24 7 17 15 . 8 AOE 22 | . . . . . . . . . . . . . . . 1 . 4 . . . 10 3 4 . . Classes Destroyed 29 | 1 5 . . 1 3 3 1 1 2 1 . 2 . 1 . 1 . 1 . 3 . . 3 . . Worker 18 | . 1 . . . 3 3 . 1 . . . . . . . . 1 . . 1 7 . . . 1 Builder 8 | . 3 . . . . 1 . . . . . . . . 1 . 3 . . . . . . . . Tunneler 5 | . . . . 3 . 1 . 1 . . . . . . . . . . . . . . . . . Hauler 6 | . . . . . . 1 . . . . . . . . . . 2 . . . 3 . . . . Recycler 9 | 1 1 . . . . 1 . 2 . . . . . . . . 1 . . 1 1 1 . . . Carrier 1 | . . . . . . . . . . . . . . . . . . . . . . . 1 . . Mechanic 1 | . . . . . . 1 . . . . . . . . . . . . . . . . . . . Operator 11 | . . . . . . . . 1 . . . . . . . . . 2 1 2 1 . 1 . 3 Drone 2 | . . . . . . . . . . . . 2 . . . . . . . . . . . . . Watcher 37 | . 3 . . . 3 1 . 3 . . . . . . 1 . 6 5 . 3 4 2 2 2 2 Swarmer 75 | . 2 2 . 6 2 3 10 . 4 1 . 12 . 4 3 6 3 . . 1 3 6 3 . 4 Cutter 4 | . . . . . . . 2 . . . . . . 2 . . . . . . . . . . . Grunt 103 | . 4 2 . 2 7 6 13 9 1 9 . . . 3 . 10 11 6 . 10 5 2 3 . . Brawler 5 | . . . . . 2 . . 2 . . . . . . . . . 1 . . . . . . . Duelist 6 | . . . . . . . . . . 1 . . . . . . . 2 . . 2 . 1 . . Protector 2 | . . . . . . . . . . . . . . . . . . . . 1 1 . . . . Researcher 13 | . . . . . . . . . . . . . . . . . . . . 7 5 . 1 . . Sentry 53 | . . . . . 8 4 . 5 . 1 . 1 . . 1 4 7 8 . . 2 4 6 . 2 Demolisher 2 | . . . . . . . . . . . . . . . . . . 2 . . . . . . . Specialist 3 | . . . . . . . . . . . . . . . . . . . . . . . 3 . . Hunter 36 | . . . . . 2 2 3 1 . 2 . 3 . . . . 6 4 . 6 4 2 . . 1 Programmer 19 | . . . . . . 2 3 1 1 . . . . . . . . . . 4 1 6 . . 1 Heavy 1 | . . . . . . . . . . . . . . 1 . . . . . . . . . . . Behemoth 5 | . . . . . . . . . . . . 1 . . . 3 . . . . 1 . . . . Lightning 3 | . . . . . . . . . . . . . . . . . . . . 3 . . . . . Tracker 2 | . . . . . . . . . . . . . . . . . . . . . . . 2 . . Combat Programmer 1 | . . . . . . . . . . . . . . . . . . . . . . . 1 . . Striker 3 | . . . . . . . . . . . . . . . . 1 . . . . . . 2 . . Alpha 7 1 | . . . . . . . . . . . . . . . . . . . . . . . 1 . . Fortress 1 | . . . . . . . . . . . . . . . . . . . . 1 . . . . . Protovariant Y 1 | . . . . . . . . . . . . . . . . . . . . . . . 1 . . Thief 2 | . . . . . . . . . 2 . . . . . . . . . . . . . . . . Thug 1 | . . . . . 1 . . . . . . . . . . . . . . . . . . . . Mutant 1 | . . . . . . . . . 1 . . . . . . . . . . . . . . . . Best Kill Streak 24 | 1 8 2 . 3 5 6 18 8 2 4 . 5 . 6 4 8 17 10 6 8 24 14 7 2 7 Combat Bots Only 18 | . 2 2 . 3 5 3 18 6 2 4 . 5 . 6 3 8 6 9 . 8 9 8 6 . 7 Max Kills in Single Turn 21 | 1 2 2 . 2 3 4 1 2 1 1 . 1 . 2 2 2 3 1 1 2 21 3 2 2 2 Gunslinging 1 | . . 1 . 1 1 . . . . . . . . 1 . . . . . . . . . . . Exploded 6 | . . . . . . . . . . . . . . . 1 . 2 . . . 6 3 1 . . Melee . | . . . . . . . . . . . . . . . . . . . . . . . . . . Uniques/NPCs Destroyed . | . . . . . . . . . . . . . . . . . . . . . . . . . . Combat | -11 -10 -10 -10 -9 -8 -7 -7 -6 -6 -6 -6 -5 -5 -5 -4 -4 -4 -4 -3 -3 -3 -2 -2 -1 -1 -------- Run | Yrd Mat Min Exi Min Mat Fac Gar Fac Low Low Dat Pro Fac DSF Fac Gar Fac Arm Res Qua Sec Res Tes Acc Com Hostile Shots Fired 998 | . 35 6 . 14 43 69 47 47 9 24 . 55 . 22 9 62 88 40 . 153 129 36 79 . 31 Missed 527 | . 11 1 . 7 17 33 28 21 6 9 . 25 . 11 6 26 53 21 . 93 80 29 35 . 15 Damage Taken 7935 | . 158 22 . 27 162 139 137 170 35 124 525 235 91 183 27 365 358 439 . 2074 1039 584 924 . 117 Core 5501 | . 107 15 . 19 103 84 88 102 24 67 410 152 67 104 13 226 221 282 . 1471 791 451 638 . 66 Absorbed by Shields 140 | . . . . . . . . . . . . . . . . . . . . . . . . . 140 Redirected to Core 4565 | . 89 15 . 19 94 67 81 98 24 67 332 143 67 68 13 201 202 259 . 1127 606 385 542 . 66 Redirected to Shielding 17 | . 15 2 . . . . . . . . . . . . . . . . . . . . . . . Ignored by Resistances 5288 | . 99 18 . 42 226 202 187 209 27 160 . 316 107 206 36 485 468 338 . 722 487 82 550 . 321 Regen/Repaired (Parts) 98 | . 31 . . . . . . . . . . . . . . . . . . 20 . . 47 . . Core Remaining (%) 97 | 100 . . . 99 100 . 99 . . . . 100 . 99 . . . 100 . . 86 . 89 . 98 Volleys Fired 681 | 2 26 4 1 14 36 39 69 37 14 22 4 31 . 11 7 79 43 55 1 88 26 21 37 1 13 Largest 6 | 1 4 4 4 4 5 5 5 5 5 5 5 5 . 5 5 6 6 5 5 5 6 6 6 6 6 Hottest 620 | 20 93 92 92 92 179 191 191 195 195 195 195 195 . 225 225 358 372 360 360 620 620 409 436 426 426 Shots Fired 3033 | 2 48 16 4 56 176 165 249 172 70 109 20 155 . 49 35 399 212 267 5 340 111 104 185 6 78 Gun 1582 | 2 48 16 4 56 160 122 154 126 56 88 16 124 . 39 28 317 130 96 . . . . . . . Cannon 1405 | . . . . . 16 38 91 44 14 21 4 31 . 10 7 79 70 171 5 340 104 103 173 6 78 Launcher 32 | . . . . . . . . . . . . . . . . . 12 . . . 7 1 12 . . Special 14 | . . . . . . 5 4 2 . . . . . . . 3 . . . . . . . . . Kinetic 2160 | 2 43 16 4 56 144 128 200 136 56 88 16 124 . 39 28 317 130 165 3 180 59 63 107 4 52 Thermal 828 | . 5 . . . 32 32 45 34 14 21 4 31 . 10 7 79 70 102 2 160 46 40 66 2 26 Explosive 31 | . . . . . . . . . . . . . . . . . 12 . . . 6 1 12 . . Electromagnetic . | . . . . . . . . . . . . . . . . . . . . . . . . . . Robot Hit Streak 134 | 2 15 9 . 24 40 64 47 41 34 42 . 34 . 17 41 53 43 57 35 134 47 58 102 5 26 Robot Miss Streak 3 | . 1 1 . 1 3 1 1 1 1 1 . 1 . 1 . 1 2 2 . 1 1 . 1 . 1 Penetration Max 2 | . . . . . . 1 1 1 . . . 1 . 1 . 1 1 1 . 2 . . . . . Secondary Targets 7 | . . 1 . 2 2 . . . . 1 . . . 1 . . . . . . . . . . . Max Gunslinging Chain 1 | . . 1 . 1 1 . . . . 1 . . . 1 . . . . . . . . . . . Shots Hit Robots 1743 | 2 38 14 . 25 128 128 99 108 49 63 . 93 . 30 25 241 110 123 2 214 77 57 88 2 27 Core Hits 716 | 2 23 5 . 14 52 41 42 49 13 30 . 26 . 19 10 53 69 48 1 72 47 34 48 2 16 Critical Kills 27 | . . . . 1 . . . 1 1 2 . 1 . . 1 3 4 1 . 4 3 . 5 . . Critical Parts Destroyed 17 | . . . . . . . 1 2 . 1 . 2 . . . 1 . . . 9 1 . . . . Critical Strikes 82 | . . . . 1 4 2 1 4 1 3 . 3 . . 1 5 4 4 . 29 9 1 8 . 2 Burn 6 | . . . . . 4 2 . . . . . . . . . . . . . . . . . . . Meltdown 18 | . . . . . . . . . . 1 . 1 . . . 2 3 1 . 2 3 . 5 . . Destroy 39 | . . . . 1 . . 1 4 1 2 . 2 . . 1 3 1 . . 22 1 . . . . Blast 19 | . . . . . . . . . . . . . . . . . . 3 . 5 5 1 3 . 2 Melee Attacks . | . . . . . . . . . . . . . . . . . . . . . . . . . . Impact . | . . . . . . . . . . . . . . . . . . . . . . . . . . Slashing . | . . . . . . . . . . . . . . . . . . . . . . . . . . Piercing . | . . . . . . . . . . . . . . . . . . . . . . . . . . Sneak Attacks . | . . . . . . . . . . . . . . . . . . . . . . . . . . Combat Hostiles . | . . . . . . . . . . . . . . . . . . . . . . . . . . Follow-up Attacks . | . . . . . . . . . . . . . . . . . . . . . . . . . . Damage Inflicted 87178 | 15 749 210 . 412 1922 2547 2579 3073 1259 1565 . 2177 . 981 961 8181 6852 5997 102 11117 24669 3434 6440 154 1782 Guns 20757 | 15 339 210 . 412 1748 1623 1158 2013 898 1022 . 1309 . 650 543 6142 2099 576 . . . . . . . Cannons 39738 | . . . . . 170 669 1421 1060 361 543 . 868 . 331 255 2039 2400 5349 102 11018 3540 3103 4573 154 1782 Explosions 26679 | . 410 . . . . 255 . . . . . . . . 163 . 2353 72 . 99 21129 331 1867 . . Melee . | . . . . . . . . . . . . . . . . . . . . . . . . . . Ramming 4 | . . . . . 4 . . . . . . . . . . . . . . . . . . . . Kinetic 32527 | 15 293 210 . 412 1438 1774 1472 2120 898 1022 . 1309 . 650 543 6142 2099 2708 . 3862 1580 1236 1878 50 816 Thermal 49141 | . 46 . . . 480 773 1107 953 361 543 . 868 . 331 418 2039 3279 3217 102 7156 21836 1867 2695 104 966 Explosive 5506 | . 410 . . . . . . . . . . . . . . . 1474 72 . 99 1253 331 1867 . . Electromagnetic . | . . . . . . . . . . . . . . . . . . . . . . . . . . Impact . | . . . . . . . . . . . . . . . . . . . . . . . . . . Slashing . | . . . . . . . . . . . . . . . . . . . . . . . . . . Piercing . | . . . . . . . . . . . . . . . . . . . . . . . . . . Highest Corruption 1 | . . . . . . . . . . . . . . . . . . . . 1 . . . . . Average Corruption 1 | . . . . . . . . . . . . . . . . . . . . 1 . . . . . Corruption Purged 1 | . . . . . . . . . . . . . . . . . . . . 1 . . . . . Corruption Blocked 8 | . . . . . . . . . . . . . . . . . . . . . . 1 7 . . Effects 1 | . . . . . . . . . . . . . . . . . . . . 1 . . . . . Data Loss (minor) 1 | . . . . . . . . . . . . . . . . . . . . 1 . . . . . Overload Shots . | . . . . . . . . . . . . . . . . . . . . . . . . . . Overflow Damage 3988 | . 126 . . . . 45 32 17 3 . . 35 . . 29 97 327 143 15 1173 1672 57 84 . 133 Projectiles 1875 | . . . . . . . 32 17 3 . . 35 . . . 97 108 143 15 1114 66 57 55 . 133 Explosions 2113 | . 126 . . . . 45 . . . . . . . . 29 . 219 . . 59 1606 . 29 . . Melee . | . . . . . . . . . . . . . . . . . . . . . . . . . . Knockbacks 46 | . . . . . . 1 2 . . . . . . . . . . 1 . 14 10 4 13 . 1 Impact . | . . . . . . . . . . . . . . . . . . . . . . . . . . Kinetic 45 | . . . . . . 1 2 . . . . . . . . . . 1 . 14 10 4 12 . 1 Secondary 1 | . . . . . . . . . . . . . . . . . . . . . . . 1 . . Self-Inflicted Damage 105 | . . . . . . . . . . . . . . . . . . . . 22 . . . . 83 Shots 2 | . . . . . . . . . . . . . . . . . . . . 1 . . . . 1 Rammed 1 | . . . . . 1 . . . . . . . . . . . . . . . . . . . . Targets Rammed 1 | . . . . . 1 . . . . . . . . . . . . . . . . . . . . Kicked . | . . . . . . . . . . . . . . . . . . . . . . . . . . Crushed . | . . . . . . . . . . . . . . . . . . . . . . . . . . Highest Temperature 229 | . 116 48 . . . . . . . . . . . . . . 5 . . 229 8 . . . . Average Temperature 42 | . 31 32 . . . . . . . . . . . . . . 3 . . 95 6 . . . . Received Heat Transfer 1203 | . 135 . . 24 117 81 108 78 27 108 . 12 . . . 153 183 54 . 48 39 . 36 . . Siege Activations . | . . . . . . . . . . . . . . . . . . . . . . . . . . Robots Corrupted . | . . . . . . . . . . . . . . . . . . . . . . . . . . Combat Hostiles . | . . . . . . . . . . . . . . . . . . . . . . . . . . Parts Fried . | . . . . . . . . . . . . . . . . . . . . . . . . . . Impact Corruptions . | . . . . . . . . . . . . . . . . . . . . . . . . . . Robots Melted 19 | . . . . . . . . . . 1 . 1 . . . 2 3 2 . 2 3 . 5 . . Combat Hostiles 16 | . . . . . . . . . . 1 . 1 . . . 1 3 2 . 2 2 . 4 . . Parts Melted 39 | . . . . . . . . 1 1 . . 3 . 1 . 3 6 3 1 6 6 3 4 1 . Heat Transferred 22698 | . 185 . . . 1369 1260 1258 999 370 555 . 851 . 333 409 1702 2398 2368 74 3336 1368 1295 1828 74 666 Parts Sabotaged . | . . . . . . . . . . . . . . . . . . . . . . . . . . Parts Stolen . | . . . . . . . . . . . . . . . . . . . . . . . . . . Parts Stripped . | . . . . . . . . . . . . . . . . . . . . . . . . . . Power Chain Reactions . | . . . . . . . . . . . . . . . . . . . . . . . . . . Alert | -11 -10 -10 -10 -9 -8 -7 -7 -6 -6 -6 -6 -5 -5 -5 -4 -4 -4 -4 -3 -3 -3 -2 -2 -1 -1 ------- Run | Yrd Mat Min Exi Min Mat Fac Gar Fac Low Low Dat Pro Fac DSF Fac Gar Fac Arm Res Qua Sec Res Tes Acc Com Peak Influence 1580 | 5 237 100 . 85 258 401 506 195 . . . . 250 254 323 297 882 460 9 307 1580 667 1259 39 536 Initial 667 | . 2 . . . . . 54 46 . . . . 250 . 99 29 99 30 . . 34 667 273 8 18 Average 134 | . 52 32 . 24 69 110 200 14 . . . . 229 93 189 103 377 240 7 85 1265 382 671 16 260 Maximum Alert Level 4 | . 1 . . . 1 2 2 . . . . . 1 1 1 1 3 2 . 1 4 2 4 . 2 Low Security (%) 79 | 100 89 100 . 100 86 71 56 100 . . . . 4 84 45 84 39 44 100 91 12 30 14 100 25 Level 1 11 | . 10 . . . 13 26 26 . . . . . 95 15 54 15 17 27 . 8 . 5 4 . 48 Level 2 5 | . . . . . . 1 17 . . . . . . . . . 17 28 . . . 63 37 . 26 Level 3 1 | . . . . . . . . . . . . . . . . . 25 . . . . . 16 . . Level 4 2 | . . . . . . . . . . . . . . . . . . . . . 87 . 26 . . Level 5 . | . . . . . . . . . . . . . . . . . . . . . . . . . . High Security . | . . . . . . . . . . . . . . . . . . . . . . . . . . Max Security . | . . . . . . . . . . . . . . . . . . . . . . . . . . Sterilizations 1 | . . . . . . . . . . . . . . 1 . . . . . . . . . . . Squads Dispatched 38 | . . . . . 1 3 . 3 . . . . . 2 1 . 4 1 3 9 6 1 3 . 1 Investigation 8 | . . . . . 1 1 . . . . . . . . 1 . 1 . 3 . . . . . 1 Extermination 7 | . . . . . . 2 . 1 . . . . . . . . 1 . . 2 . 1 . . . Reinforcement 16 | . . . . . . . . 2 . . . . . 2 . . 1 1 . 7 3 . . . . Assault 5 | . . . . . . . . . . . . . . . . . 1 . . . 3 . 1 . . Garrison . | . . . . . . . . . . . . . . . . . . . . . . . . . . Intercept 2 | . . . . . . . . . . . . . . . . . . . . . . . 2 . . Searches Triggered . | . . . . . . . . . . . . . . . . . . . . . . . . . . Construction Impeded . | . . . . . . . . . . . . . . . . . . . . . . . . . . Haulers Reinforced 4 | . . . . . . . . 2 . . . . . . . . 1 . . . 1 . . . . Active Scanning Responses . | . . . . . . . . . . . . . . . . . . . . . . . . . . Cargo Convoy Interrupts . | . . . . . . . . . . . . . . . . . . . . . . . . . . Stealth | -11 -10 -10 -10 -9 -8 -7 -7 -6 -6 -6 -6 -5 -5 -5 -4 -4 -4 -4 -3 -3 -3 -2 -2 -1 -1 --------- Run | Yrd Mat Min Exi Min Mat Fac Gar Fac Low Low Dat Pro Fac DSF Fac Gar Fac Arm Res Qua Sec Res Tes Acc Com Distress Signals 6 | . 1 . . . 2 . . . . . . . . . . . 1 1 . . 1 . . . . Communications Jammed 25 | . . . . . . 1 . 1 . . . 1 . . 1 . 1 7 . 5 6 . 2 . . Distress Signals 22 | . . . . . . . . 1 . . . . . . . . 1 7 . 5 6 . 2 . . Times Spotted 367 | . 10 4 . 9 25 19 21 17 7 14 . 13 . 9 7 18 28 26 . 38 37 19 28 2 16 Peak Tracking Total 12 | . 3 2 . 3 5 3 2 3 2 3 . 3 . 4 3 3 6 5 . 4 12 5 6 2 7 Tactical Retreats 16 | . 1 . . . 2 2 . 1 . 1 . . . 1 . . . 1 . 3 2 1 1 . . Traps | -11 -10 -10 -10 -9 -8 -7 -7 -6 -6 -6 -6 -5 -5 -5 -4 -4 -4 -4 -3 -3 -3 -2 -2 -1 -1 ------- Run | Yrd Mat Min Exi Min Mat Fac Gar Fac Low Low Dat Pro Fac DSF Fac Gar Fac Arm Res Qua Sec Res Tes Acc Com Traps Triggered 16 | . . . . . . . 8 1 . . . . 2 2 . 1 . . . 1 . . . . 1 Indirectly . | . . . . . . . . . . . . . . . . . . . . . . . . . . Trap Hack Attempts . | . . . . . . . . . . . . . . . . . . . . . . . . . . Triggered . | . . . . . . . . . . . . . . . . . . . . . . . . . . Disarmed 15 | . 6 . . . . 4 . 4 . . . . . . . . . . . . . 1 . . . Reprogrammed 66 | . 6 . . . 2 6 6 10 . . . . 1 . 4 5 6 9 4 6 . . 1 . . Reused 3 | . . . . . 1 1 . . . . . . . . . 1 . . . . . . . . . Traps Reconfigurated 10 | . . . . . 6 . . . . . . . 1 3 . . . . . . . . . . . Traps Extracted . | . . . . . . . . . . . . . . . . . . . . . . . . . . Installed . | . . . . . . . . . . . . . . . . . . . . . . . . . . Triggered 4 | . . . . . 1 1 . . 1 . . . . . . 1 . . . . . . . . . Objects Rigged 1 | . . . . . 1 . . . . . . . . . . . . . . . . . . . . Machines | -11 -10 -10 -10 -9 -8 -7 -7 -6 -6 -6 -6 -5 -5 -5 -4 -4 -4 -4 -3 -3 -3 -2 -2 -1 -1 ---------- Run | Yrd Mat Min Exi Min Mat Fac Gar Fac Low Low Dat Pro Fac DSF Fac Gar Fac Arm Res Qua Sec Res Tes Acc Com Machines Disabled 120 | . 3 . . . . 17 1 6 2 2 . 1 . . 6 10 24 2 . 20 13 . 9 1 3 Max in Single Turn 14 | . 1 . . . . 14 1 5 1 1 . 1 . . 6 2 5 1 . 3 12 . 2 1 2 Garrison Access 5 | . . . . . . . . . . . . . . . . . . . 1 1 1 . 1 1 . Garrison Relay 1 | . . . . . . . 1 . . . . . . . . . . . . . . . . . . Phase Generator 1 | . . . . . . . . . . . . . . . . . . . . . . . . . 1 Machines Repaired . | . . . . . . . . . . . . . . . . . . . . . . . . . . Machines Dismantled . | . . . . . . . . . . . . . . . . . . . . . . . . . . Machines Sabotaged . | . . . . . . . . . . . . . . . . . . . . . . . . . . Overloaded Fab Kills . | . . . . . . . . . . . . . . . . . . . . . . . . . . Hacking | -11 -10 -10 -10 -9 -8 -7 -7 -6 -6 -6 -6 -5 -5 -5 -4 -4 -4 -4 -3 -3 -3 -2 -2 -1 -1 --------- Run | Yrd Mat Min Exi Min Mat Fac Gar Fac Low Low Dat Pro Fac DSF Fac Gar Fac Arm Res Qua Sec Res Tes Acc Com Machines Accessed 114 | . 11 . 5 1 10 12 3 9 . 1 4 1 2 . 4 2 4 10 6 12 2 3 6 2 4 Terminals 75 | . 8 . . 1 8 6 3 6 . 1 . 1 2 . 1 2 4 7 4 10 1 3 2 1 4 Fabricators 8 | . . . . . . 2 . 2 . . . . . . . . . 3 . . . . 1 . . Repair Stations 3 | . 1 . . . . . . . . . . . . . . . . . . 1 . . 1 . . Recycling Units 5 | . 2 . . . . 2 . . . . . . . . 1 . . . . . . . . . . Scanalyzers 8 | . . . . . 2 1 . 1 . . . . . . 1 . . . 1 . 1 . 1 . . Garrison Access 6 | . . . . . . 1 . . . . . . . . 1 . . . 1 1 . . 1 1 . Total Hacks 1247 | . 231 . 50 48 120 71 57 135 . 8 30 6 59 . 32 29 85 67 70 53 32 18 23 11 12 Successful 1099 | . 188 . 50 38 118 70 34 133 . 8 30 6 48 . 30 16 44 67 70 53 32 18 23 11 12 Failed 148 | . 43 . . 10 2 1 23 2 . . . . 11 . 2 13 41 . . . . . . . . Catastrophic 26 | . 7 . . 1 . . 3 . . . . . . . . . 15 . . . . . . . . Database Lockouts . | . . . . . . . . . . . . . . . . . . . . . . . . . . Manual 498 | . 112 . 5 24 18 18 54 53 . . . 1 16 . 12 29 65 28 2 23 10 14 11 . 3 Terminals 929 | . 196 . . 48 63 51 57 92 . 8 . 6 59 . 15 29 85 58 39 49 20 18 14 10 12 Fabricators 50 | . . . . . . 10 . 29 . . . . . . . . . 9 . . . . 2 . . Repair Stations 22 | . 18 . . . . . . . . . . . . . . . . . . 2 . . 2 . . Recycling Units 24 | . 17 . . . . 4 . . . . . . . . 3 . . . . . . . . . . Scanalyzers 133 | . . . . . 57 4 . 14 . . . . . . 12 . . . 30 . 12 . 4 . . Garrison Access 9 | . . . . . . 2 . . . . . . . . 2 . . . 1 2 . . 1 1 . Terminal Hacks 862 | . 152 . 50 38 61 50 34 90 . 8 30 6 48 . 15 16 44 58 39 49 20 18 14 10 12 Record 240 | . 37 . 49 18 22 11 . 17 . 8 11 6 12 . . . 7 10 5 12 3 2 . 5 5 Part Schematic 65 | . 6 . . . . 1 . 21 . . 10 . 3 . . . 4 1 6 4 1 . 5 1 2 Robot Schematic 13 | . 3 . . . . 1 . 1 . . 6 . . . . . . . 2 . . . . . . Robot Analysis 16 | . 3 . . . . 1 . 3 . . . . 1 . . . 1 . 1 . 2 1 . 2 1 Prototype ID Bank 51 | . 16 . . 4 7 7 . 3 . . 3 . 1 . . . 2 2 2 1 1 . . 1 1 Open Door 4 | . . . . . . . . . . . . . . . . . . 1 1 2 . . . . . Open DSF 4 | . . . . . . 2 . 1 . . . . 1 . . . . . . . . . . . . Level Access Points 20 | . 3 . . 3 2 1 1 3 . . . . 1 . 1 . 1 2 1 . . 1 . . . Branch Access Points 27 | . 7 . . 2 4 2 1 3 . . . . 1 . 1 . 2 2 . . 1 1 . . . Emergency Access Points 30 | . 2 . . 1 2 1 4 3 . . . . 1 . 1 2 2 5 1 2 1 2 . . . Machine Index 7 | . 1 . . . . 1 . . . . . . . . . . . . 1 . 1 1 1 . 1 Terminal Index 2 | . . . . . . . . . . . . . . . . . . . 1 . 1 . . . . Fabricator Index 1 | . . . . . . . . . . . . . . . . . . . 1 . . . . . . Repair Station Index 2 | . 1 . . . . . . . . . . . . . . . . . . 1 . . . . . Recycling Unit Index 2 | . 1 . . . . . . . . . . . 1 . . . . . . . . . . . . Scanalyzer Index 2 | . 1 . . . . . . . . . . . . . . . . . . . 1 . . . . Alert Level 41 | . 14 . . . . 5 6 4 . . . . 6 . . . 2 1 3 . . . . . . Unreport Threat 66 | . . . . . . 3 7 5 . . . . 3 . 3 4 11 6 2 7 . 6 7 1 1 Locate Traps 14 | . 5 . . . 2 1 . 1 . . . . 1 . 1 2 . . 1 . . . . . . Disarm Traps 6 | . 1 . . . . 1 . 1 . . . . 1 . . . . . 1 . . 1 . . . Reprogram Traps 38 | . 4 . . 3 7 1 3 3 . . . . 1 . 1 2 2 5 1 2 1 1 1 . . Dispatch Records 12 | . 2 . . . 2 1 . 1 . . . . 2 . . . 1 1 1 . 1 . . . . Maintenance Status 9 | . 2 . . . 2 . . . . . . . . . . . 1 2 1 . 1 . . . . Security Status 7 | . 1 . . . 1 . . 1 . . . . 2 . . . . . . 1 1 . . . . Surveillance Status 8 | . 2 . . . . 1 . 1 . . . . . . 1 . . 1 1 1 . . . . . Patrol Status 7 | . 2 . . . 1 . . 1 . . . . . . . . . 1 1 1 . . . . . Transport Status 3 | . 1 . . . . . . 1 . . . . . . . . . . 1 . . . . . . Investigation Status 4 | . . . . 1 . . . 1 . . . . 1 . . . . 1 . . . . . . . Extermination Status 9 | . . . . . . . . 3 . . . . 2 . 1 . . 1 1 1 . . . . . Reinforcement Status 5 | . 2 . . . . . . . . . . . . . . . . 2 1 . . . . . . Assault Status 3 | . 1 . . . . . . . . . . . . . . . . 1 . 1 . . . . . Recall Investigation 14 | . 1 . . 1 . 1 2 2 . . . . . . 1 1 2 1 . 2 . . . . . Recall Extermination 11 | . . . . . . 1 . 2 . . . . 2 . 1 1 1 1 1 1 . . . . . Recall Reinforcements 11 | . 1 . . . . 1 . 2 . . . . . . 1 2 1 2 . 1 . . . . . Recall Assault 7 | . . . . . . 1 . . . . . . . . 1 1 1 1 . 2 . . . . . Hauler Manifests 13 | . 4 . . . . 1 . 1 . . . . 2 . . . . 2 . 1 2 . . . . Registered Components 8 | . 2 . . . 1 1 . 1 . . . . 1 . . . . 1 . . 1 . . . . Registered Prototypes 9 | . 2 . . 1 . . . 1 . . . . 1 . . . . 1 . 2 . 1 . . . Zone Layout 67 | . 24 . . 4 8 3 8 3 . . . . 1 . 1 . 3 4 1 4 1 1 . . 1 Garrison Registry 2 | . . . . . . . 1 . . . . . . . . 1 . . . . . . . . . Patrol Navigation 1 | . . . . . . . 1 . . . . . . . . . . . . . . . . . . Derelict Proto ID Bank 1 | . . . 1 . . . . . . . . . . . . . . . . . . . . . . Fabricator Hacks 50 | . . . . . . 10 . 29 . . . . . . . . . 9 . . . . 2 . . Network Status 4 | . . . . . . 2 . 2 . . . . . . . . . . . . . . . . . Load Schematic 23 | . . . . . . 4 . 13 . . . . . . . . . 5 . . . . 1 . . Build 23 | . . . . . . 4 . 14 . . . . . . . . . 4 . . . . 1 . . Repair Station Hacks 22 | . 18 . . . . . . . . . . . . . . . . . . 2 . . 2 . . Scan Component 10 | . 8 . . . . . . . . . . . . . . . . . . 1 . . 1 . . Repair 10 | . 8 . . . . . . . . . . . . . . . . . . 1 . . 1 . . Refit 2 | . 2 . . . . . . . . . . . . . . . . . . . . . . . . Recycling Unit Hacks 23 | . 17 . . . . 4 . . . . . . . . 2 . . . . . . . . . . Recycle Component 5 | . 5 . . . . . . . . . . . . . . . . . . . . . . . . Process 3 | . 3 . . . . . . . . . . . . . . . . . . . . . . . . Report Inventory 8 | . 5 . . . . 2 . . . . . . . . 1 . . . . . . . . . . Retrieve Matter 4 | . 4 . . . . . . . . . . . . . . . . . . . . . . . . Retrieve Components 3 | . . . . . . 2 . . . . . . . . 1 . . . . . . . . . . Scanalyzer 132 | . . . . . 57 4 . 14 . . . . . . 11 . . . 30 . 12 . 4 . . Insert Component 62 | . . . . . 25 2 . 7 . . . . . . 6 . . . 12 . 8 . 2 . . Analyze 70 | . . . . . 32 2 . 7 . . . . . . 5 . . . 18 . 4 . 2 . . Garrison Access Hacks 9 | . . . . . . 2 . . . . . . . . 2 . . . 1 2 . . 1 1 . Unlock Access 2 | . . . . . . 1 . . . . . . . . 1 . . . . . . . . . . Seal Access 4 | . . . . . . . . . . . . . . . . . . . 1 1 . . 1 1 . Coupler Status 3 | . . . . . . 1 . . . . . . . . 1 . . . . 1 . . . . . Unauthorized Hacks 1 | . 1 . . . . . . . . . . . . . . . . . . . . . . . . Terminals 1 | . 1 . . . . . . . . . . . . . . . . . . . . . . . . Botnet 1 | . 1 . . . . . . . . . . . . . . . . . . . . . . . . Fabricators . | . . . . . . . . . . . . . . . . . . . . . . . . . . Repair Stations . | . . . . . . . . . . . . . . . . . . . . . . . . . . Recycling Units . | . . . . . . . . . . . . . . . . . . . . . . . . . . Scanalyzers . | . . . . . . . . . . . . . . . . . . . . . . . . . . Garrison Access . | . . . . . . . . . . . . . . . . . . . . . . . . . . Data Cores Recovered 9 | . . . . . . . . 1 . . . . . . . . . . 1 2 1 . 1 . 3 Used 4 | . . . . . . . . 1 . . . . . . . . . . 1 1 . . . . 1 Hacking Detections 53 | . 11 . . 1 5 7 2 5 . . . . 1 . 2 2 3 4 4 2 1 . 2 1 . Full Trace Events 9 | . . . . . 2 1 1 . . . . . . . 1 . 1 . 3 . . . . . . Feedback Events . | . . . . . . . . . . . . . . . . . . . . . . . . . . Feedback Blocked . | . . . . . . . . . . . . . . . . . . . . . . . . . . Robot Schematics Acquired 22 | . 3 . . . . 1 . 1 . . 6 . . . . . . . 2 9 . . . . . Robots Built 11 | . . . . . . 11 . . . . . . . . . . . . . . . . . . . Authchips . | . . . . . . . . . . . . . . . . . . . . . . . . . . Time 160 | . . . . . . 160 . . . . . . . . . . . . . . . . . . . Total Robot Build Rating 11 | . . . . . . 11 . . . . . . . . . . . . . . . . . . . Part Schematics Acquired 142 | . 6 . . . 24 3 . 28 . . 10 . 3 . 4 . 4 1 17 24 8 . 7 1 2 Parts Built 23 | . . . . . . . . 19 . . . . . . . . . 3 . . . . 1 . . Authchips . | . . . . . . . . . . . . . . . . . . . . . . . . . . Time 1108 | . . . . . . . . 654 . . . . . . . . . 380 . . . . 74 . . Total Part Build Rating 116 | . . . . . . . . 92 . . . . . . . . . 15 . . . . 9 . . Parts Repaired 10 | . 8 . . . . . . . . . . . . . . . . . . 1 . . 1 . . Time 243 | . 208 . . . . . . . . . . . . . . . . . . 16 . . 19 . . Parts Recycled 5 | . 5 . . . . . . . . . . . . . . . . . . . . . . . . Recycled Matter 282 | . 282 . . . . . . . . . . . . . . . . . . . . . . . . Retrieved Matter 52 | . 52 . . . . . . . . . . . . . . . . . . . . . . . . Retrieved Components 6 | . . . . . . 5 . . . . . . . . 1 . . . . . . . . . . Parts Scanalyzed 53 | . . . . . 24 2 . 7 . . . . . . 4 . . . 11 . 3 . 2 . . Part Schematics Acquired 53 | . . . . . 24 2 . 7 . . . . . . 4 . . . 11 . 3 . 2 . . Parts Damaged 1 | . . . . . . . . . . . . . . . . . . . . . 1 . . . . Bothacking | -11 -10 -10 -10 -9 -8 -7 -7 -6 -6 -6 -6 -5 -5 -5 -4 -4 -4 -4 -3 -3 -3 -2 -2 -1 -1 ------------ Run | Yrd Mat Min Exi Min Mat Fac Gar Fac Low Low Dat Pro Fac DSF Fac Gar Fac Arm Res Qua Sec Res Tes Acc Com Used RIF Installer 2 | . . . . . . . 1 . . . . . . . . 1 . . . . . . . . . Hotswap 1 | . . . . . . . . . . . . . . . . 1 . . . . . . . . . Robots Hacked 4 | . . . . . . 2 . 2 . . . . . . . . . . . . . . . . . Non-combat 2 | . . . . . . 1 . 1 . . . . . . . . . . . . . . . . . Combat 2 | . . . . . . 1 . 1 . . . . . . . . . . . . . . . . . Robot Hacks Applied 7 | . . . . . . 5 . 2 . . . . . . . . . . . . . . . . . parse_system 4 | . . . . . . 3 . 1 . . . . . . . . . . . . . . . . . no_distress 1 | . . . . . . 1 . . . . . . . . . . . . . . . . . . . find_recycling 1 | . . . . . . 1 . . . . . . . . . . . . . . . . . . . formatsys_low 1 | . . . . . . . . 1 . . . . . . . . . . . . . . . . . Relay Couplers Released 1 | . . . . . . . 1 . . . . . . . . . . . . . . . . . . Machine Destruction 1 | . . . . . . . 1 . . . . . . . . . . . . . . . . . . Attached 1 | . . . . . . . 1 . . . . . . . . . . . . . . . . . . Fabnet Peak Effective % . | . . . . . . . . . . . . . . . . . . . . . . . . . . Robots Rewired . | . . . . . . . . . . . . . . . . . . . . . . . . . . Allies Hacked 2 | . . . . . . 1 . 1 . . . . . . . . . . . . . . . . . Hacks Repelled . | . . . . . . . . . . . . . . . . . . . . . . . . . . Allies | -11 -10 -10 -10 -9 -8 -7 -7 -6 -6 -6 -6 -5 -5 -5 -4 -4 -4 -4 -3 -3 -3 -2 -2 -1 -1 -------- Run | Yrd Mat Min Exi Min Mat Fac Gar Fac Low Low Dat Pro Fac DSF Fac Gar Fac Arm Res Qua Sec Res Tes Acc Com Total Allies 17 | . . 1 . 2 . 11 . 1 . . . . . . . 2 . . . . . . . . . Largest Group 6 | . . 1 1 2 2 6 5 1 . . . . . . . 2 . . . . . . . . . Highest-Rated Group 92 | . . 31 31 45 45 48 40 20 . . . . . . . 92 . . . . . . . . . Highest-Rated Ally 46 | . . 31 31 31 31 9 8 20 . . . . . . . 46 . . . . . . . . . Total Orders 3 | . . . . . . 1 . 2 . . . . . . . . . . . . . . . . . STAY 1 | . . . . . . . . 1 . . . . . . . . . . . . . . . . . ROAM 1 | . . . . . . 1 . . . . . . . . . . . . . . . . . . . COLLECT 1 | . . . . . . . . 1 . . . . . . . . . . . . . . . . . Ally Attacks 49 | . . . . 13 7 17 7 . . . . . . . . 5 . . . . . . . . . Total Damage 643 | . . . . 146 105 148 76 . . . . . . . . 168 . . . . . . . . . Kills 5 | . . . . 2 2 1 . . . . . . . . . . . . . . . . . . . Allies Corrupted . | . . . . . . . . . . . . . . . . . . . . . . . . . . Allies Melted . | . . . . . . . . . . . . . . . . . . . . . . . . . . Intel | -11 -10 -10 -10 -9 -8 -7 -7 -6 -6 -6 -6 -5 -5 -5 -4 -4 -4 -4 -3 -3 -3 -2 -2 -1 -1 ------- Run | Yrd Mat Min Exi Min Mat Fac Gar Fac Low Low Dat Pro Fac DSF Fac Gar Fac Arm Res Qua Sec Res Tes Acc Com Robot Analysis Total 16 | . 3 . . . . 1 . 3 . . . . 1 . . . 1 . 1 . 2 1 . 2 1 Derelict Logs Recovered 9 | . . 2 . 1 . . . . 2 2 . 2 . . . . . . . . . . . . . Drone Launches . | . . . . . . . . . . . . . . . . . . . . . . . . . . Drone Recoveries . | . . . . . . . . . . . . . . . . . . . . . . . . . . Exploration | -11 -10 -10 -10 -9 -8 -7 -7 -6 -6 -6 -6 -5 -5 -5 -4 -4 -4 -4 -3 -3 -3 -2 -2 -1 -1 ------------- Run | Yrd Mat Min Exi Min Mat Fac Gar Fac Low Low Dat Pro Fac DSF Fac Gar Fac Arm Res Qua Sec Res Tes Acc Com Turns Passed 17065 | 153 1508 957 1371 1974 2139 1214 494 1240 330 448 101 655 101 163 125 531 388 565 277 1008 313 254 475 91 190 Spaces Moved 19277 | 82 827 582 816 1028 1138 1766 988 1218 590 977 127 648 138 248 237 945 927 785 318 2380 517 446 887 184 478 Core 537 | 7 . . . . . 530 . . . . . . . . . . . . . . . . . . . Treads 4567 | 75 827 582 816 1028 1138 101 . . . . . . . . . . . . . . . . . . . Legs . | . . . . . . . . . . . . . . . . . . . . . . . . . . Wheels . | . . . . . . . . . . . . . . . . . . . . . . . . . . Hover . | . . . . . . . . . . . . . . . . . . . . . . . . . . Flight 14173 | . . . . . . 1135 988 1218 590 977 127 648 138 248 237 945 927 785 318 2380 517 446 887 184 478 Fastest Speed 16 | 50 160 160 160 160 160 28 26 21 21 21 21 21 21 21 21 21 21 16 16 16 16 16 16 16 16 Average Speed 54 | 150 160 160 160 160 161 48 26 22 21 21 21 21 21 21 21 21 23 17 16 16 16 16 17 16 16 Slowest Speed 162 | 160 160 160 160 160 162 162 28 26 21 21 21 21 24 21 21 21 61 21 16 19 16 16 25 16 16 Overloaded Moves . | . . . . . . . . . . . . . . . . . . . . . . . . . . Propulsion Burnouts . | . . . . . . . . . . . . . . . . . . . . . . . . . . Robots Hopped 20 | . . . . . . 4 1 5 . . . . . . 2 . 1 1 . 4 . 1 1 . . Cave-ins Triggered 13 | . . . . . . . . . . . 2 . . . . . . 1 . 5 2 2 1 . . Exploration Rate (%) 57 | 6 95 97 95 100 79 34 99 38 81 96 81 79 5 90 10 71 25 49 14 92 32 15 90 7 20 Regions Visited 25 Branch Regions 12 Pre-discovered Areas 8 | . . 1 1 1 . . . . 1 3 1 . . . . . . . . . . . . . . Known Exits Taken 22 | 1 1 1 1 1 1 1 . 1 1 1 1 1 1 . 1 . 1 1 1 1 1 1 1 1 . Unknown Exits Taken . | . . . . . . . . . . . . . . . . . . . . . . . . . . Scrap Searched 15 | . . 1 . 4 . . . . 3 4 . 3 . . . . . . . . . . . . . Spaces Dug 168 | . . . . . . . . 14 . . 14 3 . . . 20 43 51 . 23 . . . . . Terrain Destroyed 1839 | . 38 . . . 7 80 22 85 29 32 22 58 . 2 57 109 284 127 3 202 382 48 157 2 93 Melee . | . . . . . . . . . . . . . . . . . . . . . . . . . . Projectile 793 | . . . . . 7 9 22 38 29 32 22 58 . 2 10 109 54 117 3 163 7 31 53 2 25 AOE 1046 | . 38 . . . . 71 . 47 . . . . . . 47 . 230 10 . 39 375 17 104 . 68 Terrain Rammed . | . . . . . . . . . . . . . . . . . . . . . . . . . . Walls Destroyed . | . . . . . . . . . . . . . . . . . . . . . . . . . . Machines Disabled . | . . . . . . . . . . . . . . . . . . . . . . . . . . Actions | -11 -10 -10 -10 -9 -8 -7 -7 -6 -6 -6 -6 -5 -5 -5 -4 -4 -4 -4 -3 -3 -3 -2 -2 -1 -1 --------- Run | Yrd Mat Min Exi Min Mat Fac Gar Fac Low Low Dat Pro Fac DSF Fac Gar Fac Arm Res Qua Sec Res Tes Acc Com Total 24622 | 111 982 601 880 1331 1369 2062 1131 2125 774 1186 196 1122 209 341 295 1126 1022 1108 543 2867 708 590 1136 244 563 Wait 3519 | . 54 9 56 264 107 166 21 780 168 177 41 410 54 29 46 34 12 213 220 309 36 60 156 31 66 Move 19199 | 81 826 581 815 1027 1137 1757 985 1207 589 976 124 647 137 247 232 944 924 782 317 2366 514 441 883 183 477 Hop 20 | . . . . . . 4 1 5 . . . . . . 2 . 1 1 . 4 . 1 1 . . Pick Up 260 | 14 32 . 6 11 26 27 13 24 1 . . 12 4 13 3 8 3 19 . 18 4 3 14 2 3 Fast Attach 3 | . . . . . . 2 . . . . . . . . . 1 . . . . . . . . . Attach 87 | 12 21 . 1 . 11 14 2 2 . . . . 2 3 . 1 1 . . 8 6 . 3 . . Detach 36 | 2 1 . 1 . 7 7 1 1 . . . . . 1 . 1 . . . 7 4 . 3 . . Swap 93 | . 5 . . 6 9 7 7 15 . . . . 2 9 . 3 2 9 . 2 . 1 13 1 2 Drop 164 | . 7 . . 1 22 26 7 27 . . 3 6 3 12 1 11 4 8 5 3 6 5 2 5 . Fire 681 | 2 26 4 1 14 36 39 69 37 14 22 4 31 . 11 7 79 43 55 1 88 26 21 37 1 13 Melee . | . . . . . . . . . . . . . . . . . . . . . . . . . . Ram . | . . . . . . . . . . . . . . . . . . . . . . . . . . Kick . | . . . . . . . . . . . . . . . . . . . . . . . . . . Crush 1 | . . . . . 1 . . . . . . . . . . . . . . . . . . . . Escape Stasis 43 | . . . . . . . 10 . . . 2 . . 10 . 4 . . . 12 2 2 1 . . Rewire . | . . . . . . . . . . . . . . . . . . . . . . . . . . Trap 1 | . . . . . 1 . . . . . . . . . . . . . . . . . . . . Miscellaneous 515 | . 10 7 . 8 12 13 15 27 2 11 22 16 7 6 4 40 32 21 . 50 110 56 23 21 2 Route ------- -11/Scrapyard -10/Materials (discovered 5 exits: *Mat x3 / *Min / Sub) -10/Mines (discovered 3 exits: *Mat x2 / *Exi) -10/Exiles (discovered 2 exits: *Min x2) -9/Mines (discovered 2 exits: *Mat x2) -8/Materials (discovered 3 exits: *Fac x3) -7/Factory (discovered 8 exits: *Fac x4 / Sto / *Low x2 / Gar) -7/Garrison (discovered 3 exits: *Fac x3) -6/Factory (discovered 6 exits: Fac x4 / *Low x2) -6/Lower Caves -6/Lower Caves (discovered 2 exits: *Fac / *Dat) -6/Data Miner -5/Proximity Caves -5/Factory (discovered 7 exits: Fac x4 / Upp x2 / DSF) -5/DSF -4/Factory (discovered 10 exits: Res x4 / Upp x2 / Ext x2 / Arm / Gar) -4/Garrison (discovered 3 exits: *Fac x3) -4/Factory (discovered 9 exits: Res x4 / Upp x2 / Ext x2 / *Arm) -4/Armory (discovered 2 exits: *Res x2) -3/Research (discovered 4 exits: Res x3 / *Qua) -3/Quarantine (discovered 2 exits: *Res / *Sec) -3/Section 7 -2/Research (discovered 5 exits: *Acc x3 / *Tes x2) -2/Testing -1/Access -1/Command Tau Ceti IV Orbit History --------- Turn | Location | Event 1 | -11/Scrapyard | Upgraded with Power slot (x3) 1 | -11/Scrapyard | Upgraded with Propulsion slot (x3) 1 | -11/Scrapyard | Upgraded with Utility slot (x9) 1 | -11/Scrapyard | Upgraded with Weapon slot (x3) 5 | -11/Scrapyard | Identified exit to Materials 5 | -11/Scrapyard | Discovered exit to Materials (range 16) 154 | -11/Scrapyard | Entered Materials 218 | -10/Materials | Identified exit to Materials 310 | -10/Materials | Build established: Hauler-Mutant 428 | -10/Materials | Repaired Lgt. Assault Rifle 428 | -10/Materials | Repaired Lgt. Assault Rifle 428 | -10/Materials | Repaired Lgt. Ion Engine 428 | -10/Materials | Repaired Tractor Beam 428 | -10/Materials | Repaired Power Shielding 428 | -10/Materials | Repaired Ion Engine 454 | -10/Materials | Repaired Lgt. Treads 489 | -10/Materials | Repaired Lgt. Assault Rifle 554 | -10/Materials | Identified exit to Mines 607 | -10/Materials | Identified exit to Subcaves 607 | -10/Materials | Discovered exit to Subcaves (range 10) 893 | -10/Materials | Build established: Hauler-Skirmisher 1662 | -10/Materials | Entered Mines 1686 | -10/Mines | Reached level 2 1690 | -10/Mines | Met a Derelict bent on vengeance 1804 | -10/Mines | Identified exit to Exiles 1804 | -10/Mines | Discovered exit to Exiles (range 12) 1851 | -10/Mines | Deemed a non-threat by the Exiles lab entrance 1973 | -10/Mines | Discovered exit to Materials (range 5) 2093 | -10/Mines | Learned Materials stockpile data 2125 | -10/Mines | Learned location of Storage (-7) 2339 | -10/Mines | Discovered exit to Materials (range 8) 2451 | -10/Mines | Received a Mining Laser from a helpful Derelict 2619 | -10/Mines | Entered Exiles 2619 | -10/Exiles | Accompanied by 1 ally 2646 | -10/Exiles | Identified exit to Mines 2646 | -10/Exiles | Discovered exit to Mines (range 17) 2662 | -10/Exiles | Met 8R-AWN 2688 | -10/Exiles | Met EX-HEX 2856 | -10/Exiles | Met EX-BIN 2888 | -10/Exiles | Aligned with FarCom system 2890 | -10/Exiles | Given EX-Vault access code 3069 | -10/Exiles | Opened EX-Vault 3080 | -10/Exiles | Found Prototype Processor 3083 | -10/Exiles | Found Prototype Device 3088 | -10/Exiles | Found Prototype Device 3110 | -10/Exiles | Identified Modified TNC 3110 | -10/Exiles | Identified Trap Reconfigurator 3110 | -10/Exiles | Identified PSU Rigger 3199 | -10/Exiles | Warned to stay clear of 0b10 Research branches 3250 | -10/Exiles | Met EX-DEC 3298 | -10/Exiles | Learned location of Zion (-7) 3348 | -10/Exiles | Discovered exit to Mines (range 17) 3570 | -10/Exiles | Visited The Gauntlet 3990 | -10/Exiles | Stole three prototypes: Trap Reconfigurator, Modified TNC, PSU Rigger 3990 | -10/Exiles | Entered Mines 3992 | -9/Mines | Reached level 3 4214 | -9/Mines | Identified exit to Materials 4214 | -9/Mines | Discovered exit to Materials (range 14) 4280 | -9/Mines | Build established: Wizard-Skirmisher 4665 | -9/Mines | Discovered exit to Materials (range 16) 5247 | -9/Mines | Joined a pair of Derelicts in attacking an 0b10 outpost 5363 | -9/Mines | Learned Materials trap positions 5367 | -9/Mines | Reached level 4 5964 | -9/Mines | Entered Materials 5964 | -8/Materials | Accompanied by 2 allies 5965 | -8/Materials | Loaded intel: 13 trap records 5966 | -8/Materials | Reached level 5 5966 | -8/Materials | Reached level 6 5968 | -8/Materials | Upgraded with Weapon slot (x1) 5969 | -8/Materials | Led the pair of lost Derelicts to an unsafe place 5990 | -8/Materials | Identified exit to Factory 6245 | -8/Materials | Reached level 7 7626 | -8/Materials | Reached level 8 8103 | -8/Materials | Entered Factory 8105 | -7/Factory | FarCom data flow suspended 8105 | -7/Factory | Reached level 9 8105 | -7/Factory | Reached level 10 8105 | -7/Factory | Upgraded with Utility slot (x1) 8105 | -7/Factory | Upgraded with Weapon slot (x1) 8128 | -7/Factory | Identified exit to DSF 8397 | -7/Factory | Fabricated G-34 Mercenary (x3) 8441 | -7/Factory | Fabricated W-16 Scout? 8583 | -7/Factory | Build established: Wizard-Scout 8665 | -7/Factory | Identified exit to Storage 8665 | -7/Factory | Identified exit to Lower Caves 8665 | -7/Factory | Identified exit to Factory 8916 | -7/Factory | Reached level 11 9054 | -7/Factory | Identified exit to Garrison 9109 | -7/Factory | Fabricated G-34 Mercenary? 9176 | -7/Factory | Fabricated G-34 Mercenary? 9317 | -7/Factory | Entered Garrison 9317 | -7/Garrison | Accompanied by 5 allies 9319 | -7/Garrison | Reached level 12 9319 | -7/Garrison | Upgraded with Utility slot (x1) 9348 | -7/Garrison | Triggered checkpoint 9351 | -7/Garrison | Discovered exit to Factory (range 12) 9354 | -7/Garrison | Triggered checkpoint 9382 | -7/Garrison | Triggered checkpoint 9434 | -7/Garrison | Triggered checkpoint 9443 | -7/Garrison | Reached level 13 9460 | -7/Garrison | Triggered checkpoint 9483 | -7/Garrison | Discovered exit to Factory (range 9) 9510 | -7/Garrison | Triggered checkpoint 9537 | -7/Garrison | Destroyed 18 combat bots 9567 | -7/Garrison | Discovered exit to Factory (range 25) 9582 | -7/Garrison | Triggered checkpoint 9587 | -7/Garrison | Reached level 14 9675 | -7/Garrison | Destroyed 8 combat bots 9756 | -7/Garrison | Discovered exit to Factory (range 53) 9756 | -7/Garrison | Discovered exit to Factory (range 59) 9756 | -7/Garrison | Discovered exit to Factory (range 40) 9772 | -7/Garrison | Triggered checkpoint 9775 | -7/Garrison | Garrison Relay disabled 9779 | -7/Garrison | Installed Relay Interface Framework 9811 | -7/Garrison | Entered Factory 9813 | -6/Factory | Reached level 15 9842 | -6/Factory | Identified exit to Factory 9842 | -6/Factory | Identified exit to Lower Caves 9987 | -6/Factory | Fabricated Antigrav Array (x1) 10013 | -6/Factory | Reached level 16 10087 | -6/Factory | Fabricated Imp. Surge Thruster (x2) 10143 | -6/Factory | Fabricated Imp. Surge Thruster (x2) 10198 | -6/Factory | Fabricated Imp. Heavy Armor Plating (x1) 10248 | -6/Factory | Fabricated Adv. Signal Interpreter (x2) 10298 | -6/Factory | Fabricated Adv. Terrain Scanner (x2) 10343 | -6/Factory | Fabricated Adv. ECM Suite (x1) 10412 | -6/Factory | Fabricated Cloaking Device (x1) 10461 | -6/Factory | Fabricated Coil Gun (x2) 10516 | -6/Factory | Fabricated Phase Cannon (x2) 10602 | -6/Factory | Fabricated Enh. Autogun (x1) 10648 | -6/Factory | Fabricated Component Analysis Suite (x1) 10914 | -6/Factory | Fabricated Hvy. Assault Cannon (x1) 11023 | -6/Factory | Reached level 17 11051 | -6/Factory | Entered Lower Caves 11084 | -6/Lower Caves | Learned location of Extension (-4) 11122 | -6/Lower Caves | Attacked by a delusional Derelict stockpiling parts 11208 | -6/Lower Caves | Identified exit to Lower Caves 11381 | -6/Lower Caves | Entered another Lower Caves area 11383 | -6/Lower Caves | Reached level 18 11421 | -6/Lower Caves | Discovered exit to Factory (range 24) 11473 | -6/Lower Caves | Learned 4 Factory zone layouts 11515 | -6/Lower Caves | Learned 8 Factory zone layouts 11537 | -6/Lower Caves | Identified exit to Data Miner 11537 | -6/Lower Caves | Discovered exit to Data Miner (range 19) 11546 | -6/Lower Caves | Attracted the attention of an 0b10 base 11605 | -6/Lower Caves | Learned location of 2 exits from Upper Caves 11605 | -6/Lower Caves | Learned Factory terminal intel 11605 | -6/Lower Caves | Learned Research garrison access intel 11735 | -6/Lower Caves | Encountered a Warlord checkpoint 11829 | -6/Lower Caves | Entered Data Miner 11829 | -6/Data Miner | Identified exit to Proximity Caves 11829 | -6/Data Miner | Discovered exit to Proximity Caves (range 6) 11837 | -6/Data Miner | Met Data Miner 11854 | -6/Data Miner | Learned location of Section 7 (-3) 11854 | -6/Data Miner | Acquired the access code to Warlord's prototype stash 11861 | -6/Data Miner | Received God Mode back door access code from Data Miner 11895 | -6/Data Miner | Crushed by falling debris 11905 | -6/Data Miner | Crushed by falling debris 11930 | -6/Data Miner | Entered Proximity Caves 11932 | -5/Proximity Caves | Reached level 19 12016 | -5/Proximity Caves | Spotter reported a threat 12041 | -5/Proximity Caves | Reached level 20 12141 | -5/Proximity Caves | Received a Behemoth hack from an annoying Tinkerer 12399 | -5/Proximity Caves | Attracted the attention of an 0b10 base 12429 | -5/Proximity Caves | Learned location of 1 exit from Research 12429 | -5/Proximity Caves | Learned Extension stockpile data 12429 | -5/Proximity Caves | Learned Research security intel 12466 | -5/Proximity Caves | Spotted B-75 Beast 12488 | -5/Proximity Caves | Destroyed B-75 Beast 12585 | -5/Proximity Caves | Entered Factory 12586 | -5/Factory | Identified exit to Factory 12587 | -5/Factory | Loaded intel: 26 terminal locations 12587 | -5/Factory | Reached level 21 12681 | -5/Factory | Identified exit to Upper Caves 12686 | -5/Factory | Identified exit to DSF 12686 | -5/Factory | Entered DSF 12699 | -5/DSF | Discovered exit to Factory (range 29) 12717 | -5/DSF | Additional patrols routed to DSF 12838 | -5/DSF | Sterilization system engaged 12849 | -5/DSF | Entered Factory 12850 | -4/Factory | Identified exit to Armory 12851 | -4/Factory | Reached level 22 12868 | -4/Factory | Reached level 23 12936 | -4/Factory | Identified exit to Upper Caves 12936 | -4/Factory | Identified exit to Extension 12936 | -4/Factory | Identified exit to Research 12959 | -4/Factory | Spotted B-86 Titan 12973 | -4/Factory | Identified exit to Garrison 12974 | -4/Factory | Entered Garrison 13018 | -4/Garrison | Triggered checkpoint 13039 | -4/Garrison | Identified exit to Factory 13039 | -4/Garrison | Discovered exit to Factory (range 36) 13039 | -4/Garrison | Discovered exit to Factory (range 58) 13039 | -4/Garrison | Discovered exit to Factory (range 57) 13043 | -4/Garrison | Rescued a captive Derelict 13043 | -4/Garrison | Rescued a captive Derelict 13082 | -4/Garrison | Destroyed 8 combat bots 13099 | -4/Garrison | Reached level 24 13132 | -4/Garrison | Triggered checkpoint 13132 | -4/Garrison | Triggered checkpoint 13167 | -4/Garrison | Spotted B-86 Titan 13196 | -4/Garrison | Destroyed B-86 Titan 13225 | -4/Garrison | Heavy support dispatched to Factory 13283 | -4/Garrison | Destroyed B-86 Titan 13296 | -4/Garrison | Destroyed B-75 Beast 13346 | -4/Garrison | Triggered checkpoint 13401 | -4/Garrison | Expanded RIF knowledge: Hotswap 13414 | -4/Garrison | Triggered checkpoint 13457 | -4/Garrison | Destroyed Striker 13460 | -4/Garrison | Triggered checkpoint 13505 | -4/Garrison | Entered Factory 13655 | -4/Factory | Reached level 25 13782 | -4/Factory | First assault squad dispatched 13893 | -4/Factory | Entered Armory 13929 | -4/Armory | Found Prototype Processor 14063 | -4/Armory | Crushed by falling debris 14078 | -4/Armory | Spotted B-86 Titan 14143 | -4/Armory | Reached level 26 14232 | -4/Armory | Fabricated Antimatter Cannon (x1) 14309 | -4/Armory | Fabricated Antimatter Cannon (x1) 14313 | -4/Armory | Fabricated Antimatter Cannon? 14420 | -4/Armory | Destroyed 9 combat bots 14458 | -4/Armory | Entered Research 14459 | -3/Research | Identified exit to Quarantine 14460 | -3/Research | Reached level 27 14461 | -3/Research | Loaded intel: 3 garrison access locations 14463 | -3/Research | Identified exit to Research 14472 | -3/Research | Identified Exp. Targeting Computer 14735 | -3/Research | Entered Quarantine 14781 | -3/Quarantine | Met incapacitated Sigix Warrior 14781 | -3/Quarantine | Lockdown squad dispatched 14781 | -3/Quarantine | Reached level 28 14782 | -3/Quarantine | Acquired the access code to the Sigix quarantine chamber 14782 | -3/Quarantine | Scanned by Researcher 14806 | -3/Quarantine | Found Alien Energy Cannon 14808 | -3/Quarantine | Identified Core Cannon 14828 | -3/Quarantine | Spotted Lightning 14828 | -3/Quarantine | Spotted Lightning 14828 | -3/Quarantine | Spotted Lightning 14829 | -3/Quarantine | Destroyed Lightning 14844 | -3/Quarantine | Destroyed Lightning 14852 | -3/Quarantine | Destroyed Lightning 14984 | -3/Quarantine | Discovered exit to Research (range 23) 15037 | -3/Quarantine | Spotted Fortress 15119 | -3/Quarantine | Destroyed Fortress 15135 | -3/Quarantine | Identified exit to Section 7 15135 | -3/Quarantine | Discovered exit to Section 7 (range 19) 15203 | -3/Quarantine | Found Alien Reactor 15205 | -3/Quarantine | Identified Matter Drive 15244 | -3/Quarantine | Found Alien Artifact 15249 | -3/Quarantine | Found Alien Artifact 15250 | -3/Quarantine | Found Alien Artifact 15251 | -3/Quarantine | Found Alien Artifact 15256 | -3/Quarantine | Found Alien Artifact 15257 | -3/Quarantine | Found Alien Artifact 15258 | -3/Quarantine | Found Alien Artifact 15262 | -3/Quarantine | Spotted Alpha 7 15266 | -3/Quarantine | Found Alien Launcher 15281 | -3/Quarantine | Found Sigix Corpse 15356 | -3/Quarantine | Found Alien Artifact 15409 | -3/Quarantine | Crushed by falling debris 15528 | -3/Quarantine | Destroyed 8 combat bots 15615 | -3/Quarantine | Crushed by falling debris 15616 | -3/Quarantine | Crushed by falling debris 15621 | -3/Quarantine | Crushed by falling debris 15623 | -3/Quarantine | Crushed by falling debris 15624 | -3/Quarantine | Core integrity fell below 50% 15672 | -3/Quarantine | Repaired Adv. Sensor Array 15743 | -3/Quarantine | Entered Section 7 15745 | -3/Section 7 | Reached level 29 15760 | -3/Section 7 | Discovered exit to Research (range 15) 15776 | -3/Section 7 | Identified Core Reset Matrix 15776 | -3/Section 7 | Identified Sigix Terminator 15776 | -3/Section 7 | Identified Transdimensional Reconstructor (x2) 15776 | -3/Section 7 | Identified Dimensional Node Initializer (x3) 15776 | -3/Section 7 | Identified Hpw. Transdimensional Reconstructor (x2) 15783 | -3/Section 7 | Fired Sigix Terminator 15783 | -3/Section 7 | Destroyed B-86 Titan 15796 | -3/Section 7 | Spotted S7 Guard 15804 | -3/Section 7 | Destroyed 8 combat bots 15806 | -3/Section 7 | Spotted Alpha 7 15808 | -3/Section 7 | Scanned by Researcher 15816 | -3/Section 7 | Spotted Alpha 7 15851 | -3/Section 7 | Reached level 30 15869 | -3/Section 7 | Spotted S7 Guard 15885 | -3/Section 7 | Destroyed 9 combat bots 15993 | -3/Section 7 | First assault squad dispatched 16022 | -3/Section 7 | Crushed by falling debris 16024 | -3/Section 7 | Crushed by falling debris 16047 | -3/Section 7 | Spotted S7 Guard 16056 | -3/Section 7 | Entered Research 16107 | -2/Research | Identified exit to Testing 16107 | -2/Research | Discovered exit to Testing (range 22) 16167 | -2/Research | Reached level 31 16199 | -2/Research | Identified exit to Access 16199 | -2/Research | Discovered exit to Access (range 10) 16200 | -2/Research | Destroyed 8 combat bots 16242 | -2/Research | Crushed by falling debris 16254 | -2/Research | Crushed by falling debris 16294 | -2/Research | Destroyed 7 combat bots 16310 | -2/Research | Entered Testing 16382 | -2/Testing | Found Faulty Ragnarok Missile Launcher 16412 | -2/Testing | Repaired Imp. Weapon Shielding 16501 | -2/Testing | Fabricated Ragnarok Missile Launcher (x1) 16509 | -2/Testing | Spotted Striker 16510 | -2/Testing | Spotted Striker 16513 | -2/Testing | Destroyed Striker 16513 | -2/Testing | Reached level 32 16516 | -2/Testing | Spotted Alpha 7 16522 | -2/Testing | Destroyed Striker 16528 | -2/Testing | Destroyed Alpha 7 16538 | -2/Testing | Stole the SGEMP Prototype 16560 | -2/Testing | First assault squad dispatched 16572 | -2/Testing | Discovered exit to Access (range 13) 16624 | -2/Testing | Found Prototype Energy Cannon 16626 | -2/Testing | Identified Null Cannon 16632 | -2/Testing | Spotted PY-K10XP740JK 16636 | -2/Testing | Destroyed PY-K10XP740JK 16658 | -2/Testing | Found Prototype Hackware 16659 | -2/Testing | Identified System Mapper 16665 | -2/Testing | Intercept squad dispatched 16675 | -2/Testing | Spotted Tracker 16676 | -2/Testing | Spotted Tracker 16677 | -2/Testing | Destroyed Tracker 16680 | -2/Testing | Destroyed Tracker 16684 | -2/Testing | Found Prototype Energy Gun 16685 | -2/Testing | Found Prototype Device 16686 | -2/Testing | Identified Immobilizer 16691 | -2/Testing | Identified Exp. Phase Shifter 16696 | -2/Testing | Spotted Combat Programmer 16700 | -2/Testing | Destroyed Combat Programmer 16729 | -2/Testing | Crushed by falling debris 16779 | -2/Testing | Found Prototype Device 16780 | -2/Testing | Identified Exp. Hardlight Generator 16785 | -2/Testing | Entered Access 16787 | -1/Access | Reached level 33 16859 | -1/Access | Identified exit to Command 16859 | -1/Access | Discovered exit to Command (range 17) 16876 | -1/Access | Entered Command 16878 | -1/Command | Reached level 34 16924 | -1/Command | Phase Generator disabled 16996 | -1/Command | Found Ragnarok Missile Launcher 17046 | -1/Command | Identified exit to Surface 17046 | -1/Command | Discovered exit to Surface (range 19) 17049 | -1/Command | Destroyed 7 combat bots 17062 | -1/Command | Spotted B-99 Colossus 17062 | -1/Command | Spotted Executioner 17062 | -1/Command | Spotted Executioner 17062 | -1/Command | Spotted Striker 17063 | -1/Command | Spotted B-99 Colossus 17066 | -1/Command | Spotted Executioner 17066 | -1/Command | Spotted Striker 17066 | -1/Command | Spotted Alpha 7 17066 | -1/Command | Spotted Alpha 7 17066 | -1/Command | Spotted Executioner 17066 | -1/Command | Reached level 35 17066 | *** | Destroyed 0b10! Last Messages --------------- data. 17062_ Access Shell breached. 17063_ Acquired 1 matter. 17065_ Slug penetrates Access Shell. 17065_ Slug penetrates Wall. 17065_ Slug penetrates Access Shell. 17065_ Slug penetrates Wall. 17065_ Slug penetrates Striker. 17066_ Reached level 35. [Achievement: 10k Club] [Achievement: 20k Club] [Achievement: 30k Club] [Achievement: 40k Club] [Achievement: 50k Club] [Achievement: This Is Interesting...] [Achievement: Torch] [Achievement: Punisher] [Achievement: Payload Armed] [Achievement: Winner's Signature] [Achievement: Achiever] Map ----- +----------------------------------------------------+ | | | | | | | | | | | | | | | | | ????????#?######################################## | | ????????########################################## | | ???????########################################### | | ???????########################################### | | ??????############################################ | | ???????#?######################################### | | ??????############################################ | | ???????########################################### | | ?????##?########################################## | | ?????############################################# | | ????? ################################# | | ????? ################################# | | ?????? ? ### #" ############### | | ????# "" ##" / "" ############## | | ????# ? """"### ^^^^^^ ^ #" ############## | | ????? ? """"### ^"" "^ #" ####### ## | | ????? ? "" ### ^" " #" ######!!! ## | | ????? ### ^" @" "^ ##"""######!! ## | | ????? ? ### ^" "" "^ ##" ##!! ! ## | | ????? ### ^ "^ ### ## ## | | ?????? ### ^ " B ###" #" ## | | ?????? ?? ### ^^^^ ^^^ ###" !"" ## | | ??????+?###+######## BB E ###" #""#"### | | ??????? ######## BB K ###T = # | | ??????? ##########; ^^^^^######" + | | ????????##+###########E^^ ^ ^ #####" # | | ???????? ? #######E^^^^^######" ####+### | | ????????? ###### ^^^^^^E##### ## ## | | ????????? ? ? #######^ ^ ^###### ## ## | | ??????????? ###### ^^^^^^K##### ## ## | | ???????????? ####### ^^ ^^###### ## ## | | ???????????? ######7^^^^ 7##### ######### | | ??????????????? #######^^ ^^^############## | | ?????????????? #######^^^ ^^############## | | ???????????????#########++++############### | | ????????????????######## ############### T"" | | ??????????????? ? # # ##### """" | | ???????????????? ?? ? # # ##### """" | | ?????????????????"??? ? + # # """ | | ???????????????????" ? # # """ ##### | | ???????????????????"???# ? # "Y ############ | | ???????????????????" ??# ???# "?" ########## # | +----------------------------------------------------+ Best States ------------- Heat Dissipation 367 Energy Generation 260 Energy Capacity 4210 Matter Stores 1100 Matter Capacity 1100 Sight Range 31 Robot Scan Range 106 Terrain Scan Range 24 Terrain Scan Density 4510 ECM Strength 2 Jamming Range 14 Cloak Strength 2 Corruption Block 8 Armor Coverage 825 Resistance: KI 55 Resistance: TH 55 Resistance: EX 55 Resistance: EM 35 Resistance: I 35 Resistance: S 35 Resistance: P 35 Power Shielding 33 Weapon Cycling 25 Phase Shifting 20 Evasion (%) 86 Targeting Accuracy 16 Recoil Reduction 4 Kinecelleration 30 Salvage Targeting 1 Offensive Hacking 400 Defensive Hacking 200 Relay Coupler Types 1 Relay Coupler Value 102 Item Schematics ----------------- Assault Rifle | -10/Materials | Hacked Datajack | -10/Materials | Hacked ECM Suite | -10/Materials | Hacked Lgt. Armor Plating | -10/Materials | Hacked Targeting Computer | -10/Materials | Hacked Utility Shielding | -10/Materials | Hacked Lgt. Treads | -8/Materials | Scanalyzed Lgt. Assault Rifle | -8/Materials | Scanalyzed Power Shielding | -8/Materials | Scanalyzed EM Pulse Gun | -8/Materials | Scanalyzed Imp. Ion Engine | -8/Materials | Scanalyzed Lgt. Nuclear Core | -8/Materials | Scanalyzed Plasma Cutter | -8/Materials | Scanalyzed Lgt. Fission Core | -8/Materials | Scanalyzed Rnf. Deuterium Engine | -8/Materials | Scanalyzed Seismic Detector | -8/Materials | Scanalyzed Hpw. Tractor Beam | -8/Materials | Scanalyzed Autogun | -8/Materials | Scanalyzed Arm. Treads | -8/Materials | Scanalyzed Hrd. Light Armor Plating | -8/Materials | Scanalyzed Imp. Sensor Array | -8/Materials | Scanalyzed Imp. Terrain Scanner | -8/Materials | Scanalyzed Imp. Targeting Computer | -8/Materials | Scanalyzed Hacking Suite | -8/Materials | Scanalyzed Assault Cannon | -8/Materials | Scanalyzed Prc. Beam Rifle | -8/Materials | Scanalyzed Hrd. Medium Armor Plating | -8/Materials | Scanalyzed Gauss Rifle | -8/Materials | Scanalyzed Adv. Targeting Computer | -8/Materials | Scanalyzed Particle Gun | -8/Materials | Scanalyzed Gravmag System | -7/Factory | Scanalyzed Arm. Huge Wheel | -7/Factory | Scanalyzed Kinecellerator | -7/Factory | Hacked HERF Cannon | -6/Factory | Hacked Adv. Cooling System | -6/Factory | Hacked Gravity Neutralizer | -6/Factory | Hacked Dynamic Insulation System | -6/Factory | Hacked Actuator Array | -6/Factory | Hacked Adv. ECM Suite | -6/Factory | Hacked Adv. Assault Cannon | -6/Factory | Hacked Adv. Signal Interpreter | -6/Factory | Hacked Adv. Terrain Scanner | -6/Factory | Hacked Aerolev Unit | -6/Factory | Hacked Airjet | -6/Factory | Hacked Imp. Surge Thruster | -6/Factory | Hacked Component Analysis Suite | -6/Factory | Hacked Coil Gun | -6/Factory | Hacked Phase Cannon | -6/Factory | Hacked Imp. Heavy Armor Plating | -6/Factory | Hacked Cloaking Device | -6/Factory | Hacked Enh. Autogun | -6/Factory | Hacked Hvy. Assault Cannon | -6/Factory | Hacked Adv. Hardlight Generator | -6/Factory | Hacked Hvy. Gauss Cannon | -6/Factory | Hacked Corruption Screen | -6/Factory | Scanalyzed Hvy. Machine Gun | -6/Factory | Scanalyzed Adv. Phase Shifter | -6/Factory | Scanalyzed Recoil Stabilizer | -6/Factory | Scanalyzed Imp. Shield Generator | -6/Factory | Scanalyzed System Restoration Module | -6/Factory | Scanalyzed Target Analyzer | -6/Factory | Scanalyzed Combat Drone Bay | -6/Data Miner | Free Lgt. Regenerative Plating | -6/Data Miner | Free Enh. Armored Leg | -6/Data Miner | Free Imp. Energy Well | -6/Data Miner | Free Neutron Cannon | -6/Data Miner | Free Centrium Wheel | -6/Data Miner | Free Imp. Remote Shield | -6/Data Miner | Free Dual-blade Saw | -6/Data Miner | Free Lgt. Antimatter Reactor | -6/Data Miner | Free Imp. Gyrokinetic Inverter | -6/Data Miner | Free Antigrav Array | -5/Factory | Hacked Adv. Cryofiber Web | -5/Factory | Hacked Adv. Thermal Generator | -5/Factory | Hacked Adv. Force Field | -4/Factory | Scanalyzed 0b10 Decoder Chip [Looter] | -4/Factory | Scanalyzed Imp. Component Analysis Suite | -4/Factory | Scanalyzed Lyr. Medium Armor Plating | -4/Factory | Scanalyzed Enh. Force Lance | -4/Factory | Hacked Adv. Weapon Cycler | -4/Factory | Hacked Enh. Quantum Rifle | -4/Factory | Hacked Quantum Capacitor | -4/Factory | Hacked Antimatter Cannon | -4/Armory | Hacked Hyp. Railgun | -3/Research | Hacked Cmb. Linear Gravjet | -3/Research | Hacked Exp. Cesium-ion Thruster | -3/Research | Scanalyzed Enh. Nova Cannon | -3/Research | Scanalyzed Adv. Dynamic Insulation System | -3/Research | Scanalyzed Hvy. Proton Cannon | -3/Research | Scanalyzed Adv. Plasma Rifle | -3/Research | Scanalyzed Plasma Lance | -3/Research | Scanalyzed Exp. Targeting Computer | -3/Research | Scanalyzed Adv. Matter Compressor | -3/Research | Scanalyzed Railgun | -3/Research | Scanalyzed Triangulator | -3/Research | Scanalyzed Imp. Weapon Shielding | -3/Research | Scanalyzed Quantum Reactor | -3/Research | Hacked Lgt. Particle Reactor | -3/Research | Hacked Linear Accelerator | -3/Research | Hacked Fusion Bomb Launcher | -3/Research | Hacked Hvy. Wave Gun | -3/Quarantine | Archive Adv. KE Penetrator | -3/Quarantine | Archive Prc. Matter Filter | -3/Quarantine | Archive Cld. Impulse Thruster | -3/Quarantine | Archive Adv. Corruption Screen | -3/Quarantine | Hacked Adv. System Restoration Module | -3/Quarantine | Hacked Lgt. Antimatter Cannon | -3/Quarantine | Archive Hvy. Gatling Laser | -3/Quarantine | Archive Imp. Matter Neutralizer | -3/Quarantine | Archive Adv. Gravity Neutralizer | -3/Quarantine | Archive Helical Railgun | -3/Quarantine | Archive Thunder Hammer | -3/Quarantine | Archive Hvy. Dispersion Rifle | -3/Quarantine | Archive Ionic Axe | -3/Quarantine | Archive Adv. Thermal Defense Suite | -3/Quarantine | Archive Hdn. Centrium Wheel | -3/Quarantine | Archive Molecular Scythe | -3/Quarantine | Archive Centrium Leg | -3/Quarantine | Hacked Imp. Q-thruster | -3/Quarantine | Hacked Exp. Terrain Scan Processor | -3/Quarantine | Archive Enh. Coil Gun | -3/Quarantine | Archive Imp. Matter Compressor | -3/Quarantine | Archive Prc. Phase Gun | -3/Quarantine | Archive Exp. Thermal Generator | -3/Quarantine | Archive Gamma Rifle | -3/Section 7 | Hacked Micro-nuke Launcher | -3/Section 7 | Scanalyzed Neutrino Core | -3/Section 7 | Scanalyzed Hvy. Neutron Cannon | -3/Section 7 | Scanalyzed Stealth Drone Bay | -3/Section 7 | Archive Enh. Flexi-carbon Leg | -3/Section 7 | Archive Exp. Signal Interpreter | -3/Section 7 | Archive Hellfire Missile Launcher | -3/Section 7 | Archive Enh. Gamma Bomb Array | -2/Testing | Hacked Exp. Biometal Medium Treads | -2/Testing | Hacked Biometal Heavy Treads | -2/Testing | Hacked Ragnarok Missile Launcher | -2/Testing | Scanalyzed Adv. Remote Datajack | -2/Testing | Scanalyzed Gui. Micro-nuke Launcher | -2/Testing | Hacked Exp. Gyrokinetic Inverter | -2/Testing | Hacked Lgt. Quantum Reactor | -1/Access | Hacked Adv. Cloaking Device | -1/Command | Hacked Adv. Heavy Siege Treads | -1/Command | Hacked Robot Schematics ------------------ G-34 Mercenary | -10/Materials | Hacked S-10 Pest | -10/Materials | Hacked W-16 Scout | -10/Materials | Hacked R-06 Scavenger | -7/Factory | Hacked R-10 Processor | -6/Factory | Hacked B-60 Warrior | -6/Data Miner | Free I-47 Archangel | -6/Data Miner | Free L-41 Fighter | -6/Data Miner | Free M-22 Extractor | -6/Data Miner | Free M-36 Artificer | -6/Data Miner | Free A-15 Conveyor | -6/Data Miner | Free A-02 Transporter | -3/Research | Hacked W-44 Eye | -3/Research | Hacked Y-72 Warden | -3/Quarantine | Archive S-43 Plague | -3/Quarantine | Archive T-07 Excavator | -3/Quarantine | Archive K-01 Serf | -3/Quarantine | Archive L-61 Swordsman | -3/Quarantine | Archive H-77 Assassin | -3/Quarantine | Archive B-74 Champion | -3/Quarantine | Archive A-27 Freighter | -3/Quarantine | Archive G-67 Veteran | -3/Quarantine | Archive Fabricated ------------ G-34 Mercenary | x3 | -7/Factory W-16 Scout | x2 | -7/Factory G-34 Mercenary | x3 | -7/Factory G-34 Mercenary | x3 | -7/Factory Antigrav Array | x1 | -6/Factory | Preloaded Imp. Surge Thruster | x2 | -6/Factory Imp. Surge Thruster | x2 | -6/Factory Imp. Heavy Armor Plating | x1 | -6/Factory Adv. Signal Interpreter | x2 | -6/Factory Adv. Terrain Scanner | x2 | -6/Factory Adv. ECM Suite | x1 | -6/Factory Cloaking Device | x1 | -6/Factory Coil Gun | x2 | -6/Factory Phase Cannon | x2 | -6/Factory Enh. Autogun | x1 | -6/Factory Component Analysis Suite | x1 | -6/Factory Hvy. Assault Cannon | x1 | -6/Factory Antimatter Cannon | x1 | -4/Armory Antimatter Cannon | x1 | -4/Armory Antimatter Cannon | x1 | -4/Armory Ragnarok Missile Launcher | x1 | -2/Testing Alien Tech Used ----------------- Core Cannon Matter Drive Sigix Terminator Achievements -------------- 10k Club 20k Club 30k Club 40k Club 50k Club Achiever Alien Tech Armchair Analyst Can't Catch Me Dangerous Findings Denied? Dodgeball, But With Guns Dynamic Key Everything Is Under Control Explorer False Reunion Giant Slayer GoHome() Hard Hitter I Spy It Was An Accident, I Swear It's Just You Just What I Needed Knowing Is Half The Battle Librarian Maximum Efficiency More Power To You My Command Is Your Wish No Signal Nope Omniscient Cartographer Origins Packrat Party Time Payload Armed Preemptive Strike Production Line Punisher Quick And Dirty Remodeling Rockin' Loadout Safety First Signature Confirmed Significant Disruption Sniper Tank The More The Merrier The Oracle This Is Interesting... Torch Total Silence True Hacker Ultimate Loadout Unlikely Earthworm Use The Force War Machine Winner's Signature l33t h4x0r root@ Challenges ------------ None RPGLIKE | -11 -10 -10 -10 -9 -8 -7 -7 -6 -6 -6 -6 -5 -5 -5 -4 -4 -4 -4 -3 -3 -3 -2 -2 -1 -1 --------- Run | Yrd Mat Min Exi Min Mat Fac Gar Fac Low Low Dat Pro Fac DSF Fac Gar Fac Arm Res Qua Sec Res Tes Acc Com Levels Raised 34 | . . 1 . 2 4 3 3 3 . 1 . 2 1 . 2 1 1 1 1 1 2 1 1 1 2 XP Earned 57502 | 6000 915 1000 350 2442 6712 4740 4309 3832 868 1093 316 2676 1049 1162 1901 2007 1477 1152 1399 2585 1605 2009 1686 1431 2786 XP Spent -350605 | 5905 95 1455 . 64995 6000 125475 193515 4575 . 1380 . 3215 1465 49960 1400 2000 141520 . . -954685 . 1125 . . . Upgrades 642 | 68 2 9 . 104 14 32 75 11 . 3 . 5 2 8 2 1 159 . . 145 . 2 . . . Power Slot 3 | 3 . . . . . . . . . . . . . . . . . . . . . . . . . Propulsion Slot 3 | 3 . . . . . . . . . . . . . . . . . . . . . . . . . Utility Slot 11 | 9 . . . . . 1 1 . . . . . . . . . . . . . . . . . . Weapon Slot 5 | 3 . . . . 1 1 . . . . . . . . . . . . . . . . . . . Core Integrity 50 | 2 1 . . 9 5 . 8 8 . 1 . 2 . . . . . . . 14 . . . . . Heat Dissipation 57 | 2 . 4 . 16 . . 4 1 . . . . 1 4 2 . 7 . . 16 . . . . . Energy Generation 43 | 2 . . . 1 . . 9 . . . . . . . . . 3 . . 28 . . . . . Energy Storage 73 | 2 . . . 2 . 1 3 . . . . . . . . . . . . 65 . . . . . Matter Storage 16 | 2 . . . . 2 . 8 . . 2 . . . . . . . . . . . 2 . . . Mass Support 61 | 4 . . . . . 15 3 . . . . . . 4 . . 35 . . . . . . . . Inventory Capacity 55 | 24 . . . . . 1 5 . . . . . . . . . 20 . . 5 . . . . . Sight Range 15 | 2 . . . 4 . . 8 . . . . . . . . . . . . 1 . . . . . Sensor Range 45 | 3 . 1 . 11 3 3 7 2 . . . 3 1 . . . 1 . . 10 . . . . . Terrain Scan Density 45 | . 1 . . 42 . . 2 . . . . . . . . . . . . . . . . . . Ranged Accuracy 22 | . . 1 . 3 2 7 3 . . . . . . . . 1 . . . 5 . . . . . Melee Accuracy 2 | . . . . . . . 2 . . . . . . . . . . . . . . . . . . Hack Attack % 72 | 7 . . . 2 . . 2 . . . . . . . . . 60 . . 1 . . . . . Hack Defense % 40 | . . . . 5 . . 2 . . . . . . . . . 33 . . . . . . . . KI Resistance % 4 | . . 1 . 3 . . . . . . . . . . . . . . . . . . . . . TH Resistance % 4 | . . 1 . 3 . . . . . . . . . . . . . . . . . . . . . EX Resistance % 4 | . . 1 . 3 . . . . . . . . . . . . . . . . . . . . . KI Damage % 4 | . . . . . 1 1 2 . . . . . . . . . . . . . . . . . . TH Damage % 4 | . . . . . . 1 3 . . . . . . . . . . . . . . . . . . EX Damage % 4 | . . . . . . 1 3 . . . . . . . . . . . . . . . . . . Protomatter Created 6604 | . 89 51 . 58 274 169 677 450 160 483 . 394 . 101 40 827 633 385 . 579 288 266 489 . 191 Integrity Restored 10620 | . 228 153 . 162 191 161 190 523 8 151 503 221 133 105 75 847 627 420 . 1119 2579 1250 472 454 48 Core 7535 | . 228 153 . 144 114 84 79 468 3 88 410 152 67 93 13 297 219 284 . 1025 2047 881 315 323 48 Parts 3085 | . . . . 18 77 77 111 55 5 63 93 69 66 12 62 550 408 136 . 94 532 369 157 131 . Protomatter Decayed 3088 | . . . . 56 52 53 465 290 161 448 . 13 . 21 11 416 181 165 . 159 116 241 85 . 155 Game ------ Seed ChipTeslaWings Manual? 0 Play Time 09:31:46 Cumulative 13.2 hours Start 2024.04.02 @ 17:20:55 End 2024.04.04 @ 20:32:13 Sessions 3 Manual Loads 0 Difficulty Explorer Special Mode Winter2019/RPGLIKE Game No. 3 Rogue 0 Adventurer 0 Explorer 3 Win Type 3 Total 1 Types 0/0/0/1/0/0/0/0/0 Lore% 27 Gallery% 13 Achievement% 30 Wizard Run 0 Options --------- Layout 2 ASCII 0 Keyboard 0 Movement Mouse Keybinds 0 Fullscreen 2 Font 24/Smallcaps Map View 50x44 Zoom Use 0% Tactical HUD 1 Map Filters NONE Filters NONE Steam 1 RUN: 1a3cdc42-03a8-40f7-9044-07cf871830ca